{"text_format":"2","workbook":"xlsx","n_sheets":1,"sheets":["Preventiv_FINAL"],"not_rendered":{"charts":0,"images":1,"macros":0,"external_links":0,"defined_names":1,"comments":0,"pivot_tables":0},"unopened":[],"bounds":{"document_bytes":16777216,"sheet_cells":100000,"run_cost":"one","rows_first":2000,"rows_last":500,"rows_between":2000,"halvings":0,"cell_chars":16384,"cell_head_chars":4096},"cells_cut":0,"cells_raw":0,"read":"whole","date_system":"1900"}

{"sheet":"Preventiv_FINAL","index":0,"n_rows":1508,"n_cols":6,"rows_kept":1508,"cut":false,"hidden":false,"merged":[]}
["BoQ ; PREVENTIV "]
[]
["SHKOLLA E MESME E BASHKUAR “ISMET NANUSHI”"]
["“ISMET NANUSHI” JOINT HIGH SCHOOL"]
[]
["Nr. Rend","Pershkrimi i zerit  te punes ","Njesia","Sasia",null,"Vlera"]
["No.","Description","Unit","Q-ty",null,"Cost, leke"]
[null,"A. PUNIME NDERTIMI "]
[null,"CIVIL WORKS"]
[null,"1.  Punime murature dhe konstruksioni"]
[null,"Masonry works"]
[1,"Germim themele e plinta b > 2m ekskavator me zinxhir 0.5m³","m³",6400,null,{"$f":"E12*D12","v":0}]
[null,"Soil excavation with excavator b>2m, 0.5m³ "]
[2,"Transport materiale ndertimi,  dheu me auto deri 37 km Shkolla  “Ismet Nanushi”  - (Lanfilli Sharres) + tarifen e depozitimit","m³",6400,null,{"$f":"E14*D14","v":0}]
[null,"Transport of materials, soil with auto to 37 km,  Ismet Nanushi School - Sharra Landfill"]
[3,"Shtrese çakelli mbeturine kave t=2x20cm,  perhapur e ngjeshur me makineri poshte pllakes se themelit","m²",496,null,{"$f":"E16*D16","v":0}]
[null,"Gravel layer, under foundations d=2x20cm"]
[4,"Mbushje me cakull","m³",900,null,{"$f":"E18*D18","v":0}]
[null,"Gravel filling"]
[5,"Shtrese betoni C 12/15 per nivelim poshte pllakes se themelit","m³",124,null,{"$f":"E20*D20","v":0}]
[null,"Concrete layer C 12/15 for leveling under the foundation "]
[6,"Mur me tulla te lehtesuara t=20-25 cm deri 3m me llaç perzier M25","m³",903,null,{"$f":"E22*D22","v":0}]
[null,"Wall with lightened brick t=20-25cm up to 3m with mortar mixed M25"]
[7,"Mur tulle ndares me  6 vrima, t=12cm, h~3m, llaç perzier M15","m³",103,null,{"$f":"E24*D24","v":0}]
[null,"Brick walls with 6-hole bricks, t=12cm, with mortar mixed M15"]
[8,"Trare e arkitrare b/a C30/37 h ~ 4m","m³",395,null,{"$f":"E26*D26","v":0}]
[null,"Monolithic foundation beam r/c  C - 30/37"]
[9,"Kollona b/a monolite C 30/37","m³",560,null,{"$f":"D28*E28","v":0}]
[null,"Column r/c monolith C - 30/37"]
[10,"Pllake themeli, trare e bazamente b/a  C 25/30","m³",715,null,{"$f":"E30*D30","v":0}]
[null,"R/C basement beams  C 25/30"]
[11,"Mure b/a t = 21-30 cm, C 30/37","m³",209,null,{"$f":"D32*E32","v":0}]
[null,"R/C wall, t=21-30, C 30/37"]
[12,"Hidroizolim me emulsion bitumi dhe 1 shtrese k katrama 4mm","m²",4875,null,{"$f":"E34*D34","v":0}]
[null,"Waterproofing with bitumen emulsion and 1 layers of tar 4mm"]
[13,"Soleta te parapergatitura me tulla me 6 vrima C 30/37, h = 25+5 cm","m²",3545,null,{"$f":"D36*E36","v":0}]
[null,"R/C pre-prepared slabs with 6-hole bricks, h = 25+5 cm, C 230/37"]
[14,"Soleta te plota b/a C 20/25  t = 20 cm, h ~ 4m","m³",145,null,{"$f":"D38*E38","v":0}]
[null,"Monolith slabs C 20/25t=20cm, h ~ 4m"]
[15,"F V hekur betoni periodik Ø 6 - 10 mm","ton",175,null,{"$f":"E40*D40","v":0}]
[null,"SI of steel of peridoc concrete Ø 6 - 10 mm"]
[16,"F V hekur betoni periodik Ø > 10 mm","ton",207.2,null,{"$f":"E42*D42","v":0}]
[null,"SI of steel of peridoc concrete Ø > 10 mm"]
[17,"Konstruksione metalike te perbera (shkallet)","ton",17,null,{"$f":"E44*D44","v":0}]
[null,"Composite metal constructions(stairs)"]
[18,"Pllake themeli, trare e bazamente b/a  C 25/30 (Shkalla metalike)","m³",26.2,null,{"$f":"D46*E46","v":0}]
[null,"R/C basement beams  C 25/30"]
[19,"Trare antisizmik betoni C (16/20), h~4m","m³",14.85,null,{"$f":"D48*E48","v":0}]
[null,"Anti seismic beams C 16/20, h~4m"]
[20,"Arkitrare C 20/25 20x20cm, L=1 ml per dyer","ml",215,null,{"$f":"E50*D50","v":0}]
[null,"R/C beam above the door"]
[21,"Arkitrare C 20/25 25x20cm, L=1 ml per dritare","ml",680,null,{"$f":"E52*D52","v":0}]
[null,"R/C beam above the windows"]
[22,"Galvanizim i konstruksioneve metalike (shkallet e emergjences)","ton",17,null,{"$f":"E54*D54","v":0}]
[null,"Galvanized steel  for metallic constructions(Emergency stairs)"]
[null,"shuma  1","leke",null,null,{"$f":"SUM(F12:F54)","v":0}]
[null,"Sum "]
[]
[null,"2.  Punime terace dhe catije"]
[null,"Terrace and Roof Works"]
[1,"Hidroizolim me emulsion bitumi dhe 1 shtrese k katrama 4mm","m²",1090,null,{"$f":"E61*D61","v":0}]
[null,"Waterproofing with bitumen emulsion and 2 layers of tar 4mm"]
[2,"Kasete shkarkimi me llamarine me boje te pjekur 1.0mm","cope",19,null,{"$f":"E63*D63","v":0}]
[null,"Rain water discharge cassette in sheet metal with baked paint 1.0 mm"]
[3,"F.V Zgare filtruese per ujerat e shiut","cope",19,null,{"$f":"E65*D65","v":0}]
[null,"SI Filter grill rain water "]
[4,"Ulluk shkarkimi vertikal me llamarine me boje te pjekur Ø 120","ml",270,null,{"$f":"E67*D67","v":0}]
[null,"Vertical gutter in sheet metal with baked paint Ø 120"]
[5,"Shtrese lluster cimento 1:2, 2 x t = 40 mm ","m²",1710,null,{"$f":"E69*D69","v":0}]
[null,"Cement layer scratched 1: 2, 2 x t = 40 mm"]
[6,"Shtrese autonivelant","m²",855,null,{"$f":"E71*D71","v":0}]
[null,"Self-leveling layer"]
[7,"Shtrese termoizoluese me polisterol t=10 cm 30kg/m3","m²",855,null,{"$f":"E73*D73","v":0}]
[null,"Thermoinsulation layer with polysterol t=10cm 30kg/m3"]
[8,"Shtrese betoni C 12/15 per  t=10 cm per parapetin","m³",8.1,null,{"$f":"E75*D75","v":0}]
[null,"Concrete layer C 12/15 for t=10 cm for parapette"]
[9,"Konstruksion metalike per shkallet e daljet ne tarace","ton",0.3,null,{"$f":"E77*D77","v":0}]
[null,"Steel frame for the exit stairs to the terrace"]
[10,"Suva parapeti mur tulle, me krah, llaç perzier M 25","m²",238,null,{"$f":"E79*D79","v":0}]
[null,"Plastering of parapette walls M25 with hands h - 8 m"]
[11,"Kapuc parapeti me llamarine me boje te pjekur","ml",265,null,{"$f":"E81*D81","v":0}]
[null,"Parapet cover in sheet metal with baked paint"]
[12,"Galvanizim i konstruksioneve metalike","ton",0.3,null,{"$f":"E83*D83","v":0}]
[null,"Galvanized steel  for metallic constructions"]
[null,"shuma   2 ","leke",null,null,{"$f":"SUM(F60:F83)","v":0}]
[null,"Sum "]
[]
[null,"3.  Punime shtresash "]
[null,"Layer Works"]
[1,"Hidroizolim me emulsion bitumi dhe 1 shtrese k katrama 4mm Kati perdhe dhe bodrumi","m²",1030,null,{"$f":"E90*D90","v":0}]
[null,"One layer waterproffing with bitumen emulsion  and cardboard tar 4mm Ground floor"]
[2,"Hidroizolim me emulsion bitumi dhe 2 shtresa k katrama 4mm ne tualete","m²",527,null,{"$f":"E92*D92","v":0}]
[null,"Two layers waterproffing at toilets with bitumen emulsion and 2 layers of cardboard tar 4mm in the toilets"]
[3,"Shtrese lluster cimento niveluese 1:2 t = 80 mm","m²",5370,null,{"$f":"E94*D94","v":0}]
[null,"Cement leveling layer scratched 1: 2, t = 80 mm"]
[4,"Shtrese me pllaka grez importi 40 x 40 cm t=8 mm. Standarti ISO, cilesia e pare","m²",4995,null,{"$f":"E96*D96","v":0}]
[null,"Flooring in gress porcelain tiles 40x40 cm ISO standart, first quality"]
[5,"Shirita adezive te ashper 30 cm per orientimin e PAK","ml",870,null,{"$f":"E98*D98","v":0}]
[null,"Gress stripes with rough surface for disabled (30cm)"]
[6,"Shtrese me pllaka graniti te hyrjet ne objekt t=2cm Standarti ISO, cilesia e pare","m²",90.5,null,{"$f":"E100*D100","v":0}]
[null,"Granite stone tiles t=2cm at entrance ISO standart, first quality"]
[7,"Shtrese me pllaka grez porcelanato 30x30 cm, Standarti ISO, cilesia e pare ne tualete","m²",527,null,{"$f":"E102*D102","v":0}]
[null,"Gress porcelain tiles 30x30 cm ISO standart, first quality, in toilets"]
[8,"Plintuse grez importi, h = 10 cm","ml",2680,null,{"$f":"E104*D104","v":0}]
[null,"Skirts of mermer porcelain h=10cm"]
[9,"Plintuse mermeri h = 10cm ","ml",40,null,{"$f":"E106*D106","v":0}]
[null,"Skirts of mermer porcelain h=10cm"]
[10,"Shkalle dhe pragje mermer t=2cm, standarti ISO, cilesi e pare","m²",162,null,{"$f":"E108*D108","v":0}]
[null,"Marble stone at stairs and indoor sill t=2cm, ISO standart, first quality"]
[11,"Shtrese me pllaka mermeri t=2cm per davancalet e parapetit te ballkonit","m²",11.1,null,{"$f":"E110*D110","v":0}]
[null,"Marble stone tiles t=3cm at entrance ISO standart for balcony parapette "]
[12,"F.V. Fuge dilatacioni per dysheme dhe mure me profil alumini dhe gome ","ml",120,null,{"$f":"E112*D112","v":0}]
[null,"SI Expansion joints for floors with aluminum and rubber profiles"]
[null,"shuma  3","leke",null,null,{"$f":"SUM(F89:F113)","v":0}]
[null,"Sum "]
[]
[null,"4.  Punime suvatimi dhe veshje"]
[null,"Plaster and ceiling works"]
[1,"Suva brenda mur tulle h~4m me krah, llaç perzier M 25","m²",13700,null,{"$f":"E119*D119","v":0}]
[null,"Plastering of internal brick walls  h~4m with arms, mixed mortar M 25"]
[2,"Suva solete h ~ 4 m me drejtues, me krah shkallet","m²",114.5,null,{"$f":"E121*D121","v":0}]
[null,"Plastering of slab h ~ 4 m with arms at stairs"]
[3,"Tavan me kartonxhes standart EU","m²",10240,null,{"$f":"E123*D123","v":0}]
[null,"Gib Board Ceiling EU standart"]
[4,"Patinim tavani gipsi me stuko allçie ","m²",10240,null,{"$f":"E125*D125","v":0}]
[null,"Fine plaster at Gib Board Ceiling"]
[5,"F.V kendore plastike ne qoshet e mureve","ml",2650,null,{"$f":"E127*D127","v":0}]
[null,"Plastic wall angle "]
[6,"Dritare kontrolli 60x60 montim në tavan gipsi","cope",34,null,{"$f":"E129*D129","v":0}]
[null,"Control window 60x60 on the Gib Board ceiling "]
[7,"Hidroizolim ne lartesine 1 m, me nje shtres llaci  me baze cimento dhe 2 komponente ITC HD2, perfshire rrjeten e xhamit, per ambjent te jashtem per xokol ","m²",235,null,{"$f":"E131*D131","v":0}]
[null,"Waterproofing with a layer of cement-based mortar, prepared by two components ITC HD2, including fiber glass mesh, at foundations"]
[8,"Shkronja foreksi per emertimin e shkolles","cope",22,null,{"$f":"E133*D133","v":0}]
[null,"Forex letters for the label"]
[9,"Suva jashte mur tulle h~8m me krah, llaç perzier M 25","m²",2910,null,{"$f":"E135*D135","v":0}]
[null,"Plastering of external brick walls h~8m with arms, mix mortar M 25"]
[10,"Veshje fasade me polisterol kompakt t=4cm + rrjete + kolle, 30kg/m3","m²",1000,null,{"$f":"E137*D137","v":0}]
[null,"Thermoinsulation coating of facades t=4cm, mesh and adhesive plaster, 30kg/m3"]
[11,"Veshje fasade me polisterol kompakt t=8cm + rrjete + kolle, 30kg/m3","m²",1425,null,{"$f":"E139*D139","v":0}]
[null,"Thermoinsulation coating of facades t=8cm, mesh and adhesive plaster  30kg/m3"]
[12,"Suvatim me grafiato me granulometri 4 mm,  h > 4 m ","m²",2550,null,{"$f":"E141*D141","v":0}]
[null,"Graffiato plastering on wall facade, granulometry 4 mm, h > 4 m"]
[13,"Veshje fasade me polisterol kompakt i forte XPS t=8cm per mbajtje ngarkese ne siperfaqe + rrjete qelqi+kolle per rrafshim+kolle per fiksimin e pllakes, ne fasade muri ~ 8m","m²",470,null,{"$f":"E143*D143","v":0}]
[null," Solid compact polystyrene facade cladding XPS t=5cm,  load bearing on the surface + glass mesh+cement adhesive, on wall facade ~ 8m"]
[14,"Veshje fasade me pllake gres porcenalat teksture druri, standart ISO, cilesi e pare me dimensione 30x120 cm","m²",470,null,{"$f":"E145*D145","v":0}]
[null,"Gress porcelain tiles for facades, wood texture, ISO standart, first quality, 30x120 cm dimensions"]
[15,"F.V hijezues alumini me imitacion druri \"Louver\" 6 cope x 20x2x270cm me mekanizem","cope",27,null,{"$f":"E147*D147","v":0}]
[null,"SI aluminum wood shading  \"Louver\" on the façade 20x2x270cm\n"]
[16,"Mbulim strehe me polikarbonat  (detajet sipas projektit)","m²",56,null,{"$f":"E149*D149","v":0}]
[null,"Polycarbonate shelter cover (see design details)"]
[17,"Zgara me tuba inoksi ne vetrata ne pjesen e brendshme te klasa","ml",30,null,{"$f":"E151*D151","v":0}]
[null,"SI grill with stainless steel pipes indoor classrooms at windows"]
[18,"Rrjet teli i zinkuar+PVC, 4mm, h=120cm te tarraca e katit te dyte","ml",37,null,{"$f":"E153*D153","v":0}]
[null,"SI grill with stainless steel pipes,  4mm, h=120cm at second floor terrace"]
[19,"Veshje muri me kartonxhes cimentato","m²",18.75,null,{"$f":"E155*D155","v":0}]
[null,"Wall Covering wall with cementitious cardboard\n"]
[20,"F.V rrjet  plastike 140gr/m2 per suvatim","m²",1715,null,{"$f":"E157*D157","v":0}]
[null,"Cover brick walls and columns with plastic mesh 140gr/m2 "]
[21,"Hidroizolim ne lartesine 1 m, me nje shtres llaci  me baze cimento dhe 2 komponente ITC HD2, perfshire rrjeten e xhamit, ne muret e WC-se","m²",597,null,{"$f":"E159*D159","v":0}]
[null,"Waterproofing with a layer of cement-based mortar, prepared by two components ITC HD2, including fiber glass mesh, in the walls of the toilet"]
[22,"Veshje me pllake gres porcenalat 30x60 cm standarti ISO, cilesia e pare ne wc","m²",1195,null,{"$f":"E161*D161","v":0}]
[null,"Coating with gress porcelain tiles 30x60 cm, on toilet walls ISO standart, first quality"]
[null,"shuma 4","leke",null,null,{"$f":"SUM(F119:F162)","v":0}]
[null,"Sum  "]
[]
[null,"5.  Punime dyer dritare "]
[null,"Doors and windows works"]
[1,"Shtrese me pllaka mermeri t=2 cm per pragjet e dyerve","m²",39.119999999999997,null,{"$f":"E168*D168","v":0}]
[null,"Layer with marble tiles t = 2 cm for door sills"]
[2,"Shtrese me pllaka mermeri t=2cm per davancalet e dritareve","m²",295.55,null,{"$f":"E170*D170","v":0}]
[null,"Layer with marble tiles t = 2cm for window sills"]
[3,"Konstruksione metalike te thjeshta 10x10 t=3mm","ton",0.23782400000000001,null,{"$f":"E172*D172","v":0}]
[null,"Metal constructions10x10 t=3mm"]
[4,"F.V dritare d/alumini plastike me dopio xham me gaz argoni, me prerje termike dhe me izolim akustik, U=2 W/m2K; standart ISO EN 9002","m²",879.1,null,{"$f":"E174*D174","v":0}]
[null,"SI plastic window with double glass filled with argon gas, thermal cut and acustic insulation, U=2 W/m2K; standard ISO EN 9002"]
[6,"F.V dritare d/alumini plastike me dopio xham te bombarduar ne tualete me gaz argoni, me prerje termike dhe me izolim akustik, U=2 W/m2K; standart ISO EN 9002","m²",60,null,{"$f":"E176*D176","v":0}]
[null,"SI plastic window with double patterned glass in toilets filled with argon gas, thermal cut and acustic insulation, U=2 W/m2K; standard ISO EN 9002"]
[7,"F.V dyer te brendeshme me dru pishe dhe me binare 10x4 cm cdo 40 cm duke filluar 20 cm nga pjesa e poshtme dhe me veshje dru pishe dhe me kase me dru pishe te stazhionuar (me trashesi 4 cm) e trajtuar me nje mbulese mbrojtese te drunjte, cilesia e I","m²",139,null,{"$f":"E178*D178","v":0}]
[null,"SI of internal wooden doors with pine wood and with rails 10x4 cm every 40 cm starting 20 cm from the bottom and with pine wood paneling and with case of seasoned pine wood (4 cm thick) treated with a wooden protective cover ,  first quality"]
[8,"Dyer d/alumini me trashesi 32 mm me kasa fikse duralumini 90 mm, me xham tripleks te temperuar ne WC","m²",162.19999999999999,null,{"$f":"E180*D180","v":0}]
[null,"SI aluminium doors width 32mm with alluminum frames 90 mm, with tempered triplex glass in WC"]
[9,"F.V Dere d/alumini me trashesi 32 mm me kasa fikse duralumini 90 mm, me xham tripleks te temperuar ne tualetin e  PAK me doreze antipanik ne anen e brendshme ","m²",18,null,{"$f":"E182*D182","v":0}]
[null,"SI aluminium doors width 32mm with alluminum frames 90 mm, with tempered triplex glass with emergency hinges inside the toilet of people with disabilities"]
[10,"Vetrate me kase d/alumini plastike me prerje termike dhe izolim akustik, U=2 W/m2K; standart ISO EN 9002, me dopio xham te temperuar te hyrjet kryesore","m²",51.2,null,{"$f":"E184*D184","v":0}]
[null,"SI plastic frame thermal cut and acustic insulation, U=2 W/m2K; standard ISO EN 9002 with tempered double glass main entrance doors"]
[11,"F.V Dyer metalike 100x220 me mekanizem antipanik dalja per tek shkallet e emergjences","cope",14,null,{"$f":"E186*D186","v":0}]
[null,"SI Emergency Exit Metal Doors 100x220 with antipaniic exit device"]
[12,"F.V zgara dekorativa hekuri me figuracion mesatare","ton",3.67,null,{"$f":"E188*D188","v":0}]
[null,"SI windows metal railings with decorative configuration"]
[null,"shuma  5","leke",null,null,{"$f":"SUM(F167:F188)","v":0}]
[null,"Sum  "]
[]
[null,"6.  Punime bojatisje"]
[null,"Painting works"]
[1,"Boje hidroplastike ECO, cilesi e pare","m²",23995,null,{"$f":"E195*D195","v":0}]
[null,"ECO Painting of walls, first quality"]
[2,"Boje hidroplastike importi cilesi e I-re per jashte","m²",2550,null,{"$f":"E197*D197","v":0}]
[null,"Painting of façade walls, import first quality"]
[null,"shuma 6","leke",null,null,{"$f":"SUM(F195:F197)","v":0}]
[null,"Sum  "]
[]
[null,"7.  Punime te ndryshme "]
[null,"Different works"]
[1,"Korimano me tuba inoksi tek shkallet","ml",111,null,{"$f":"E204*D204","v":0}]
[null,"Handrail stainless steel tubular , for stairs"]
[2,"F.V. Ashensori (5 ndalesa) ku perfshihet kabina e saj, konstruksioni i udhezimit te levizjes, buloneria, paneli elektrik, motor, etj.","cope",2,null,{"$f":"E206*D206","v":0}]
[null,"SI elevator (5 stops) including the cabin, movement instruction construction, bolting, electrical panel, motor, etc."]
[null,"shuma  7","leke",null,null,{"$f":"SUM(F204:F207)","v":0}]
[null,"Sum  "]
[]
[null,"8.  Punime drenazhimi, xokolature, trotuari dhe muri rrethues"]
[null,"Tiles for sidewalk and draining works"]
[1,"Germim themele e plinta b>2m, ekskavator me goma, kova 0.25m3 shkarkim auto per sistemim dhe nivelim territori","m³",4380,null,{"$f":"E213*D213","v":0}]
[null,"Soil excavation for regulation, leveling area"]
[2,"Germim e mbushje dheu me krah kategoria III per themele, h = 1.5m","m³",798,null,{"$f":"E215*D215","v":0}]
[null,"Soil excavation and filling  with arms, category III for foundations, h= 1.5 m"]
[3,"Germim e mbushje dheu me krah kategoria IV per themele, h = 1.5m","m³",40,null,{"$f":"E217*D217","v":0}]
[null,"Soil excavation and filling with arms category IV for foundation h=1.5 m"]
[4,"Transport materiale ndertimi,  dheu me auto deri 37 km Shkolla  “Ismet Nanushi”  - (Lanfilli Sharres) + tarifen e depozitimit","m³",5218,null,{"$f":"E219*D219","v":0}]
[null,"Transport of materials, soil with auto to 37 km,  Ismet Nanushi School - Sharra Landfill"]
[5,"Shtrese rere","m³",21,null,{"$f":"E221*D221","v":0}]
[null,"Sand layer"]
[6,"Mbushje me cakull","m³",511,null,{"$f":"E223*D223","v":0}]
[null,"Gravel layer"]
[7,"Ndertim muri rrethues mbi mur mbajtes sipas specifikimeve ne projekt","ml",75,null,{"$f":"E225*D225","v":0}]
[null,"Building of fence walls  above the bearing walls (see design specifications)"]
[8,"Ndertim muri rrethues sipas specifikimeve ne projekt","ml",220,null,{"$f":"E227*D227","v":0}]
[null,"Building of fence walls  (see design specifications)"]
[9,"Mure b/a t = 21-30cm, h ~ 4m C 20/25 (Muret mbajtese)","m3",261,null,{"$f":"E229*D229","v":0}]
[null,"Building of fence walls  (Cantilever Wall)"]
[10,"F V hekur betoni periodik Ø > 10 mm (Muret mbajtese)","ton",16.399999999999999,null,{"$f":"E231*D231","v":0}]
[null,"SI of steel of peridoc concrete Ø > 10 mm (Cantilever Wall)"]
[11,"Bordura trotuari 15x25 cm","ml",770,null,{"$f":"E233*D233","v":0}]
[null,"Sidewalk borders 15x25cm"]
[12,"Kunete e mbyllur me kapak me zgarë çeliku i zinkuar, 2.5x18x100 cm, klasi A15 per largimin e ujerave siperfaqesore te shiut","ml",450,null,{"$f":"E235*D235","v":0}]
[null,"Closed cup with lid with galvanized steel carrier, 2.5x18x100 cm, class A15 for removal of surface rainwater"]
[13,"Trotuar me pllaka betoni 6 cm, mbi shtrese betoni pa borduren e betonit","m²",1930,null,{"$f":"E237*D237","v":0}]
[null,"Concrete tiles for sidewalk t=6 cm over the concrete layers, without concrete borders"]
[14,"Trotuar me pllaka betoni \"Hoje blete\" C 20/25, t=8cm, pa borduren e betonit, te parkimi","m²",115,null,{"$f":"E239*D239","v":0}]
[null,"Gray concrete pavers with honeycomb configuration at parking, C 20/25, t=8cm"]
[15,"Perpunim siperfaqsor me 1 shtrese granil ~ 7mm","m²",115,null,{"$f":"E241*D241","v":0}]
[null,"Granulated stone"]
[16,"F V hekur betoni periodik Ø 6 - 10 mm","ton",0.67,null,{"$f":"E243*D243","v":0}]
[null,"SI of steel of peridoc concrete Ø > 10 mm  for wall and benches"]
[17,"Bazamente b/a monolite C16/20 per mure dhe stola","m³",74.5,null,{"$f":"E245*D245","v":0}]
[null,"Basements r/c monolithic concrete C16/20, for r/c wall and benches"]
[18,"Lyerje betoni te shkallareve me hyperdesimo","m²",220,null,{"$f":"E247*D247","v":0}]
[null,"Concrete stairs coating with hyperdesimo"]
[19,"F.V Fidane peme dekorative Bli 16-18 cm/ 6m","cope ",24,null,{"$f":"E249*D249","v":0}]
[null,"SI decorative linden trees 16-18 cm/ 6m"]
[20,"F.V. Fidane shkurre dekorative \"Oleander\"","cope ",48,null,{"$f":"E251*D251","v":0}]
[null,"SI ornamental shrub seedlings \"Oleander\""]
[21,"Stola beton dhe ristela druri lisi","cope",22,null,{"$f":"E253*D253","v":0}]
[null,"Concrete benches with oak wood stripes"]
[22,"Sistemim, nivelim dhe pasurim me humus 5kg/m2","m2",945,null,{"$f":"E255*D255","v":0}]
[null,"Regulation, leveling and enrichment with humus 5kg/m2"]
[23,"Mbjellje bari","m²",945,null,{"$f":"E257*D257","v":0}]
[null,"Grass planting"]
[24,"F.V kosha per mbeturina te vogla","cope ",12,null,{"$f":"E259*D259","v":0}]
[null,"SI waste bins"]
[25,"F.V porte metalike dekorative rreshqitese (detajet sipas projektit)","m²",18,null,{"$f":"E261*D261","v":0}]
[null,"SI decorative metal sliding gates (details given in the design)"]
[26,"Lyerje me boje vaji dy duar kangjellat e rrethimit dhe porta hyrese","m²",378,null,{"$f":"E263*D263","v":0}]
[null,"Oil painting the two hands of railings of the fence and the entrance gate"]
[27,"Rrethim me rrjet teli  i veshur me plastike ngjyre jeshile + konstruksioni","m²",183.6,null,{"$f":"E265*D265","v":0}]
[null,"Enclosure and cover with wire mesh d = 2.5mm lined with green plastic+ construction element"]
[28,"F.V kabine e parapregatitur per rojen e shkolles sipas specifikimeve ne projekt","cope",1,null,{"$f":"E267*D267","v":0}]
[null,"Prefabricated cabin for guard"]
[null,"shuma  8","leke",null,null,{"$f":"SUM(F213:F268)","v":0}]
[null,"Sum  "]
[]
[null,"9.  Punime per rampat"]
[null,"Tiles for wheelchair ramp"]
[1,"Germim e mbushje dheu me krah kategoria III per themele, h = 1.5m","m³",117,null,{"$f":"E274*D274","v":0}]
[null,"Soil excavation and filling  with arms, category III for foundations, h= 1.5 m"]
[2,"Mbushje me cakull","m³",24,null,{"$f":"E276*D276","v":0}]
[null,"Gravel layer"]
[3,"Shtrese betoni C 12/15 per  t=10 cm","m³",116,null,{"$f":"E278*D278","v":0}]
[null,"Concrete layer C 12/15 for t=10 cm"]
[4,"Bazamente b/a monolite C16/20 per pandus","m³",108,null,{"$f":"E280*D280","v":0}]
[null,"Basements r/c monolithic concrete C16/20, for ramp"]
[5,"Shtrese lluster cimento e gervishtur 1:2, t = 20 mm","m²",162.19999999999999,null,{"$f":"E282*D282","v":0}]
[null,"Cement layer scratched 1: 2, t = 20 mm"]
[6,"Parapet shkalle e ballkone me tuba inoksi h=80~90cm","ml",94,null,{"$f":"E284*D284","v":0}]
[null,"Stair railing and balconies with stainless steel pipes h = 80 ~ 90cm"]
[7,"Transport materiale ndertimi,  dheu me auto deri 37 km Shkolla  “Ismet Nanushi”  - (Lanfilli Sharres) + tarifen e depozitimit","m³",141,null,{"$f":"E286*D286","v":0}]
[null,"Transport of materials, soil with auto to 37 km,  Ismet Nanushi School - Sharra Landfill"]
[null,"Shuma  9","leke",null,null,{"$f":"SUM(F274:F287)","v":0}]
[null,"Sum  "]
[]
[null,"10. Punime ndertimore Palestra"]
[null,"CONSTRUCTION WORKS AT THE GYM BUILDING"]
[1,"Germim themele e plinta b>2m, ekskavator me goma, kova 0.25m³ shkarkim auto","m³",1045,null,{"$f":"E293*D293","v":0}]
[null,"Soil excavation with excavator b>2m, 0.25m³ "]
[2,"Germim dheu me krah e transport  me k dore 10 m, kategoria IV","m³",52,null,{"$f":"E295*D295","v":0}]
[null,"Soli excavation with arms and transport carro up to 10 m, category IV"]
[3,"Transport materiale ndertimi,  dheu me auto deri 37 km Shkolla  “Ismet Nanushi”  - (Lanfilli Sharres) + tarifen e depozitimit","m³",1097,null,{"$f":"E297*D297","v":0}]
[null,"Transport of materials, soil with auto to 37 km,  Ismet Nanushi School - Sharra Landfill"]
[4,"Shtrese çakelli mbeturine kave t=2x20cm,  perhapur e ngjeshur me makineri","m²",232,null,{"$f":"E299*D299","v":0}]
[null,"Gravel layer, under foundations d=2x20cm"]
[5,"Mbushje me cakull","m³",640,null,{"$f":"E301*D301","v":0}]
[null,"Gravel filling"]
[6,"Shtrese betoni C 12/15 niveluse poshte pllakes se themelit","m³",57,null,{"$f":"E303*D303","v":0}]
[null,"Concrete layer C 12/15  for leveling under the foundation "]
[7,"Trare e arkitrare b/a C25/30 h ~ 4m","m³",51,null,{"$f":"E305*D305","v":0}]
[null,"Monolithic foundation beam r/c  C - 30/37"]
[8,"Kollona b/a monolite C 25/30 h ~ 4m","m³",52,null,{"$f":"D307*E307","v":0}]
[null,"Column r/c monolith C - 30/37"]
[9,"Pllake themeli, trare e bazamente b/a  C 25/30","m³",118,null,{"$f":"E309*D309","v":0}]
[null,"R/C basement beams  C 25/30"]
[10,"Mure b/a t = 21-30cm, h ~ 4m C 20/25","m³",50.3,null,{"$f":"D311*E311","v":0}]
[null,"R/C wall, t=21-30, C 20/25"]
[11,"Soleta b/a  me tulla me 6 vrima, Hd = 6m, trashesi 30 cm C 25/30","m²",178,null,{"$f":"D313*E313","v":0}]
[null,"R/C pre-prepared slabs with 6-hole bricks, h = 25+5 cm, C 25/30"]
[12,"Soleta te plota b/a C 20/25  t = 20 cm, h ~ 4m","m³",80.8,null,{"$f":"D315*E315","v":0}]
[null,"Monolith slabs C 20/25t=20cm, h ~ 4m"]
[13,"F V hekur betoni periodik Ø 6 - 10 mm","ton",18.899999999999999,null,{"$f":"E317*D317","v":0}]
[null,"SI of steel of peridoc concrete Ø 6 - 10 mm"]
[14,"F V hekur betoni periodik Ø > 10 mm","ton",23.8,null,{"$f":"E319*D319","v":0}]
[null,"SI of steel of peridoc concrete Ø > 10 mm"]
[15,"Konstruksione metalike te perbera S-275","ton",18.2,null,{"$f":"E321*D321","v":0}]
[null,"Composite metal constructionsS-275"]
[16,"Mure b/a t = 21-30cm, h ~ 4m C 20/25 (Muret mbajtese)","m³",261,null,{"$f":"D323*E323","v":0}]
[null,"R/C wall, t=21-30, C 20/25(retaining walls)"]
[17,"Mbulim çatie me panele sanduich t=100mm, t1=2x0.5mm, 0.21 Kcal/m2hc, 0.24 Wm2K, 40 kg/m3, 12.72 kg/m2","m²",553,null,{"$f":"E325*D325","v":0}]
[null,"Roofing with sandwich panels t=100mm, t1=2x0.5mm, 0.21 Kcal/m2hc, 0.24 Wm2K, 40 kg/m3, 12.72 kg/m2"]
[18,"Mur me tulle te lehtesuara t=20-25 cm deri 3m me llaç perzier M25","m³",167,null,{"$f":"E327*D327","v":0}]
[null,"Wall with lightened brick t=25cm up to 3m with mortar mixed M25"]
[19,"Mur tulle ndares me  6 vrima, t=12cm, h~3m, llaç perzier M15","m³",17.5,null,{"$f":"E329*D329","v":0}]
[null,"Brick walls with 6-hole bricks, t=12cm, with mortar mixed M15"]
[20,"Suva brenda mur tulle h~4m me krah, llaç perzier M 25","m²",1420,null,{"$f":"E331*D331","v":0}]
[null,"Plastering of brick walls h ~ 4m with arm, mixed mortar M 25"]
[21,"F.V rrjet  plastike 140gr/m2 per suvatim muret dhe kolonat","m²",142,null,{"$f":"E333*D333","v":0}]
[null,"Cover brick walls and columns with plastic mesh 140gr/m2 "]
[22,"Tavan me kartonxhes standart EU","m²",200,null,{"$f":"E335*D335","v":0}]
[null,"Gib Board Ceiling EU standart"]
[23,"Patinim tavani gipsi me stoku allçie","m²",200,null,{"$f":"E337*D337","v":0}]
[null,"Fine plaster at Gib Board Ceiling"]
[24,"Hidroizolim ne lartesine 1 m, me nje shtres llaci  me baze cimento dhe 2 komponente ITC HD2, perfshire rrjeten e xhamit, per ambjent te jashtem per xokol ","m²",165,null,{"$f":"E339*D339","v":0}]
[null,"Waterproofing with a layer of cement-based mortar, prepared by two components ITC HD2, including fiber glass mesh, at foundations"]
[25,"Suva jashte mur tulle h~8m me krah, llaç perzier M 25","m²",740,null,{"$f":"E341*D341","v":0}]
[null,"Plastering of external brick walls with arms, mix mortar M 25"]
[26,"Veshje fasade me polisterol kompakt t=8cm + rrjete + suva e thjeshte, 30kg/m3","m²",490,null,{"$f":"E343*D343","v":0}]
[null,"Thermoinsulation coating of facades, mesh and standart plaster t=8cm, 30kg/m3"]
[27,"Suvatim me grafiato  me granulometri 4 mm,  h > 4 m ","m²",560,null,{"$f":"E345*D345","v":0}]
[null,"Graffiato plastering with granulometry 4 mm, h > 4 m"]
[28,"Veshje fasade me polisterol kompakt t=4cm + rrjete + suva e thjeshte, 30kg/m3","m²",40,null,{"$f":"E347*D347","v":0}]
[null,"Thermoinsulation coating of facades t=4cm, mesh and standart plaster, 30kg/m3"]
[29,"Veshje fasade me polisterol kompakt i forte XPS t=4cm per mbajtje ngarkese ne siperfaqe + rrjete qelqi+kolle per rrafshim+kolle per fiksimin e pllakes, ne fasade, muri ~ 8m","m²",160,null,{"$f":"E349*D349","v":0}]
[null," Solid compact polystyrene facade cladding XPS t=4cm,  load bearing on the surface + glass mesh+cement adhesive, on wall facade ~ 8m"]
[30,"Veshje fasade me polisterol kompakt i forte XPS t=8cm per mbajtje ngarkese ne siperfaqe + rrjete qelqi+kolle per rrafshim+kolle per fiksimin e pllakes, ne fasade, muri ~ 8m","m²",90,null,{"$f":"E351*D351","v":0}]
[null," Solid compact polystyrene facade cladding XPS t=8cm,  load bearing on the surface + glass mesh+cement adhesive, on wall facade ~ 8m"]
[31,"Veshje fasade me pllake gres porcenalat teksture druri, standart ISO, cilesi e pare me dimensione 30x120 cm","m²",250,null,{"$f":"E353*D353","v":0}]
[null,"Gress porcelain tiles for facades, wood texture, ISO standart, first quality, 30x120 cm dimensions"]
[32,"F.V kendore plastike per qoshet e mureve","ml",210,null,{"$f":"E355*D355","v":0}]
[null,"SI Plastic wall angle"]
[33,"Shtrese termoizoluese ne dyshemene e palestres me polisterol t=5 cm 30kg/m3","m²",631,null,{"$f":"E357*D357","v":0}]
[null,"Thermoinsulation layer with polysterol t=10cm 30kg/m3"]
[34,"Hidroizolim me emulsion bitumi dhe 2 shtresa k katrama 4mm ne tualete dhe tarracen e dusheve","m²",56.6,null,{"$f":"E359*D359","v":0}]
[null,"Two layers waterproffing at toilets with bitumen emulsion and 2 layers of cardboard tar 4mm in the toilets and terrace"]
[35,"Hidroizolim me emulsion bitumi dhe 1 shtrese k katrama 4mm","m²",474.5,null,{"$f":"E361*D361","v":0}]
[null,"Waterproofing with bitumen emulsion and 1 layers of tar 4mm"]
[36,"Shtrese termoizoluese me polisterol t=5 cm kati perdhe 30kg/m3","m²",474.5,null,{"$f":"E363*D363","v":0}]
[null,"Thermoinsulation layer with poisterol t=5cm30kg/m3"]
[37,"Shtrese lluster cimento niveluese 1:2 t = 80 mm","m²",200,null,{"$f":"E365*D365","v":0}]
[null,"Cement leveling layer scratched 1: 2, t = 80 mm"]
[38,"Shtrese lluster cimento niveluese 1:2 t = 20 mm","m²",{"$f":"D381","v":435},null,{"$f":"E367*D367","v":0}]
[null,"Cement leveling layer scratched 1: 2, t = 20 mm"]
[39,"Shtrese me pllaka grez importi 40 x 40 cm t=8mm. Standarti ISO, cilesia e pare","m²",143,null,{"$f":"E369*D369","v":0}]
[null,"Flooring in gress porcelain tiles 40x40 cm ISO standart, first quality"]
[40,"Shtrese me pllaka grez porcelanato ne tualete 30 x 30 cm Standarti ISO, cilesia e pare","m²",56.6,null,{"$f":"E371*D371","v":0}]
[null,"Gress porcelaim tiles in toilets 30x30 cm ISO standart, first quality"]
[41,"Plintuse grez importi, h = 10 cm","ml",121.6,null,{"$f":"E373*D373","v":0}]
[null,"Skirts of gress porcelain, h=10cm"]
[42,"Hidroizolim ne lartesine 1 m, me nje shtres llaci  me baze cimento dhe 2 komponente ITC HD2, perfshire rrjeten e xhamit, per ambjent te jashtem per tualete dhe dushe","m²",103,null,{"$f":"E375*D375","v":0}]
[null,"Waterproofing with a layer of cement-based mortar, prepared by two components ITC HD2, including fiber glass mesh, at toilets and showers"]
[43,"Veshje me pllake gres porcenalat 30x60 cm, standarti ISO, cilesia e pare, ne tualete dhe dushe","m²",206,null,{"$f":"E377*D377","v":0}]
[null,"Coating with gress porcelaim 30x60 cm tiles  of walls ISO standart, first quality at toilets and showers"]
[44,"Shkronja foreksi per emertimin e palestres","cope",8,null,{"$f":"E379*D379","v":0}]
[null,"Forex letters for the gym label"]
[45,"FV Parket Lis masiv R 21 x 50 x 400 mm, perfshire ristelat, nenshtresen, vidat, astarin dhe llakun si edhe plintusat","m²",435,null,{"$f":"E381*D381","v":0}]
[null,"FV Parquet Massive oak R 21 x 50 x 400 mm, including slats, substrate, screws, primer and varnish as well as skirts"]
[46,"F.V dritare d/alumini plastike me dopio xham te bombarduar, me gaz argoni, me prerje termike dhe me izolim akustik, U=2 W/m2K; standart ISO EN 9002","m²",22,null,{"$f":"E383*D383","v":0}]
[null,"SI plastic window with double patterned glass filled with argon gas, thermal cut and acustic insulation, U=2 W/m2K; standard ISO EN 9002"]
[47,"F.V dritare d/alumini plastike me dopio xham me gaz argoni, me prerje termike dhe me izolim akustik, U=2 W/m2K; standart ISO EN 9002","m²",50,null,{"$f":"E385*D385","v":0}]
[null,"SI plastic window with double glass filled with argon gas, thermal cut and acustic insulation, U=2 W/m2K; standard ISO EN 9002"]
[48,"Vetrate me kase d/alumini plastike me izolim akustik, U=2 W/m2K; standart ISO EN 9002, me dopio xham te temperuar te hyrjet e palestres","m²",6.6,null,{"$f":"E387*D387","v":0}]
[null,"SI plastic frame thermal cut and acustic insulation, U=2 W/m2K; standard ISO EN 9002 with tempered double glass main entrance door"]
[49,"Dyer d/alumini me trashesi 32 mm me kasa fikse duralumini 90 mm, me xham tripleks te temperuar ne dushe","m²",18,null,{"$f":"E389*D389","v":0}]
[null,"SI aluminium doors width 32mm with alluminum frames 90 mm, with tempered triplex glass in the showers"]
[50,"F.V dyer te brendeshme me dru pishe dhe me binare 10x4 cm cdo 40 cm duke filluar 20 cm nga pjesa e poshtme dhe me veshje dru pishe dhe me kase me dru pishe te stazhionuar (me trashesi 4 cm) e trajtuar me nje mbulese mbrojtese te drunjte, cilesia e I","m²",13.2,null,{"$f":"E391*D391","v":0}]
[null,"SI of internal wooden doors with pine wood and with rails 10x4 cm every 40 cm starting 20 cm from the bottom and with pine wood paneling and with case of seasoned pine wood (4 cm thick) treated with a wooden protective cover ,  first quality"]
[51,"F.V Dyer metalike zjarrduruese me llamarine 27.75 kg/m²","m²",2.2000000000000002,null,{"$f":"E393*D393","v":0}]
[null,"SI fireprotect metal Doors 27.75 kg/m² "]
[52,"Shtrese me pllaka mermeri t=2cm per davancalet e dritareve","m²",12.65,null,{"$f":"E395*D395","v":0}]
[null,"Layer with marble tiles t = 2cm for window sills"]
[53,"Shtrese me pllaka mermeri t=2cm standart ISO, cilesi e pare, per davancalet e dritareve","m²",3.4,null,{"$f":"E397*D397","v":0}]
[null,"Layer with marble tiles t = 2cm for window sills, ISO standards, first quality"]
[54,"Arkitrare C 20/25 20x20cm, L=1 ml per dyer","ml",22.05,null,{"$f":"E399*D399","v":0}]
[null,"R/C beam for the doors"]
[55,"Arkitrare C 20/25 25x20cm, L=1 ml per dritare","ml",32.9,null,{"$f":"E401*D401","v":0}]
[null,"R/C beam for the windows"]
[56,"F.V rrjete e endur hekuri ne dritaret e palestres","m²",15.7,null,{"$f":"E403*D403","v":0}]
[null,"SI stainless woven mesh window security Screens "]
[57,"F.V zgara dekorativa hekuri me figuracion mesatare","ton",0.87,null,{"$f":"E405*D405","v":0}]
[null,"SI windows iron decoration"]
[58,"Veshje muri me kartonxhes cimentato","m²",440,null,{"$f":"E407*D407","v":0}]
[null,"Wall Covering wall with cementitious cardboard"]
[59,"Shtrese betoni C 12/15 per  t=10 cm per parapetin","m³",1.8,null,{"$f":"E409*D409","v":0}]
[null,"Concrete layer C 12/15for t=10 cm for parapette"]
[60,"Kapuc parapeti me llamarine me boje te pjekur","ml",90,null,{"$f":"E411*D411","v":0}]
[null,"Parapet cover in sheet metal with baked paint"]
[61,"Kasete shkarkimi me llamarine me boje te pjekur 1.0mm","cope",5,null,{"$f":"E413*D413","v":0}]
[null,"Rain water discharge cassette baked sheet metal with tin 1.0 mm"]
[62,"Ulluk shkarkimi vertikal me llamarine me boje te pjekur Ø 120","ml",37.5,null,{"$f":"E415*D415","v":0}]
[null,"Vertical baked sheet metal gutter Ø 120"]
[63,"Ulluk shkarkimi horizontal me llamarine me boje te pjekur 33 cm","ml",99,null,{"$f":"E417*D417","v":0}]
[null,"Horizontal baked sheet metal gutter 33 cm"]
[64,"Mbulim strehe me polikarbonat ","m²",12,null,{"$f":"E419*D419","v":0}]
[null,"Polycarbonate shelter cover"]
[65,"Boje hidroplastike ECO , cilesi e pare","m²",1620,null,{"$f":"E421*D421","v":0}]
[null,"ECO Painting of walls, first quality"]
[66,"Boje hidroplastike importi cilesi e I-re per jashte","m²",560,null,{"$f":"E423*D423","v":0}]
[null,"Painting of façade walls, import first quality"]
[67,"Lyerje me boje vaji dy duar konstruksionet metalike","m²",300,null,{"$f":"E425*D425","v":0}]
[null,"Oil painting the two hands of Composite metal constructions"]
[68,"F.V tabele per koshat e basketbollit (perfshi struktura mbajtese dhe koshat) sipas detajeve ne projekt","cope",2,null,{"$f":"E427*D427","v":0}]
[null,"SI Basketball stand portable (including bearing structure and baskets)as per details in the design"]
[69,"F.V  Rrjete volejbolli","cope",1,null,{"$f":"E429*D429","v":0}]
[null,"SI Volleyball nets"]
[70,"Vijezime termoplastike spray deri ne 12 cm te fushat e lojes","ml",270,null,{"$f":"E431*D431","v":0}]
[null,"Thermoplastic spray 12 cm at sport fields"]
[null,"Shuma  10","leke",null,null,{"$f":"SUM(F293:F432)","v":0}]
[null,"Sum  "]
[]
[null,"11. Terrenet sportive I"]
[null,"Sports fields"]
[1,"F.V. Zgare metalike me gjeresi 20cm + kanalina","ml",85,null,{"$f":"E438*D438","v":0}]
[null,"SI of trench Drain 20 cm"]
[2,"F.V. Hekur Periodik ","ton",2.5,null,{"$f":"E440*D440","v":0}]
[null,"SI of periodic steel"]
[3,"Konstruksion metalike","ton",5.0999999999999996,null,{"$f":"E442*D442","v":0}]
[null,"Steel frame construction"]
[4,"F.V. Kavo celiku d=7mm  perfshi fiksuesit","ton",0.19,null,{"$f":"E444*D444","v":0}]
[null,"Steel cable d=7mm"]
[5,"Rrethim me rrjet teli sheshet sportive d=2.5mm i veshur me plastike ngjyre jeshile","m²",480,null,{"$f":"E446*D446","v":0}]
[null,"Enclosure and cover with wire mesh d = 2.5mm lined with green plastic"]
[6,"Mbulim me rrjete najloni per fushen ","m²",370,null,{"$f":"E448*D448","v":0}]
[null,"Cover with nylon mesh for the field"]
[7,"Mbushje me cakull","m³",7.5,null,{"$f":"E450*D450","v":0}]
[null,"Gravel layer, under foundations d=10cm"]
[8,"Pllake themeli, trare e bazamente b/a  C 20/25","m³",75,null,{"$f":"E452*D452","v":0}]
[null,"Foundation slabs, beams and foundations C 20/25"]
[9,"F.V. Shtrese tapet bari artificial (i gomuar) 35mm","m²",370,null,{"$f":"E454*D454","v":0}]
[null,"SI artificial grass carpet"]
[10,"F.V Prozhektore per fushen me llampe 50W 230V","cope",6,null,{"$f":"E456*D456","v":0}]
[null,"SI Projector assembly"]
[11,"F.V. Elektroda  tokezimi  komplet","cope",6,null,{"$f":"E458*D458","v":0}]
[null,"Earthing accessories"]
[12,"F.V. Pusete elektrike kontrolli PVC 40x40x40cm kapak i forte ","cope",6,null,{"$f":"E460*D460","v":0}]
[null,"SI electric manhole"]
[13,"F.V. Kabell   FG7OR  0.6/ 1KV.  3x2.5mm2","ml",100,null,{"$f":"E462*D462","v":0}]
[null,"SI electric cable"]
[14,"F.V. Tub fleksibel me 2 shtresa  D=75mm","ml",65,null,{"$f":"E464*D464","v":0}]
[null,"SI flexible pipe"]
[15,"F.V tabele per koshat e basketbollit (perfshi struktura mbajtese dhe koshat) sipas detajeve ne projekt","cope",2,null,{"$f":"E466*D466","v":0}]
[null,"SI Basketball stand portable (including bearing structure and baskets)as per details in the design"]
[16,"F.V.  Rrjete volejbolli","cope",1,null,{"$f":"E468*D468","v":0}]
[null,"Volleyball nets"]
[17,"Lyerje me boje vaji me dy dyar antiruxhio jeshil konstruksionet","m²",100,null,{"$f":"E470*D470","v":0}]
[null,"Painting of iron decoration"]
[18,"Vijezime termoplastike spray deri ne 12 cm te fushat e lojes","ml",180,null,{"$f":"E472*D472","v":0}]
[null,"Thermoplastic spray 12 cm at sport fields"]
[null,"shuma  11","leke",null,null,{"$f":"SUM(F438:F473)","v":0}]
[null,"Sum  "]
[]
[null,"12. Terrenet sportive II"]
[null,"Sports fields"]
[1,"Mbushje me cakull","m³",140,null,{"$f":"D479*E479","v":0}]
[null,"Gravel layer, under foundations d=20cm"]
[2,"Shtrese betoni C-16/20 t=15 cm te fushat e sportit","m³",21,null,{"$f":"D481*E481","v":0}]
[null,"Concrete layer C 16/20 for t=15 cm, sport fields floor"]
[3,"F.V. hekur betoni periodik Ø 6 - 10 mm","ton",0.45,null,{"$f":"D483*E483","v":0}]
[null,"SI of steel Ø 8-10 mm for layers"]
[4,"Shtrese gome e lengshme 1.2 cm + praimer mbi bazament betoni te fushat e sportit per elasticitet","m²",136,null,{"$f":"D485*E485","v":0}]
[null,"Liquid Rubber coating 1.2 cm + praimer over the concrete layer for elasticity at sport fields"]
[5,"Shtrese tartani mbi shtresen e gomes","m²",136,null,{"$f":"D487*E487","v":0}]
[null,"Tartan layer over the rubber coating"]
[6,"F.V tabele per koshat e basketbollit (perfshi struktura mbajtese dhe koshat) sipas detajeve ne projekt","cope",2,null,{"$f":"E489*D489","v":0}]
[null,"SI Basketball stand portable (including bearing structure and baskets)as per details in the design"]
[7,"F.V.  Rrjete volejbolli","cope",1,null,{"$f":"E491*D491","v":0}]
[null,"Volleyball nets"]
[8,"Vijezime termoplastike spray deri ne 12 cm te fushat e lojes","ml",100,null,{"$f":"E493*D493","v":0}]
[null,"Thermoplastic spray 12 cm at sport fields"]
[null,"shuma  12","leke",null,null,{"$f":"SUM(F479:F494)","v":0}]
[]
[null,"13. Kabina elektrike"]
[null,"Electrical cabin"]
[1,"Germim dheu me krah ","m³",6,null,{"$f":"E499*D499","v":0}]
[null,"Excavation of soil with arm "]
[2,"Germim e mbushje dheu me krah kategoria III per themele, h = 1.5m","m³",12,null,{"$f":"E501*D501","v":0}]
[null,"Soil excavation and filling with arms category III for foundation h=1.5m"]
[3,"Transport materiale ndertimi,  dheu me auto deri 37 km Shkolla  “Ismet Nanushi”  - (Lanfilli Sharres) + tarifen e depozitimit","m³",18,null,{"$f":"E503*D503","v":0}]
[null,"Transport of building materials, soil with auto up to 37 km"]
[4,"Mur me tulle te lehtesuara dopio deri 3m me llaç perzier M25","m³",21,null,{"$f":"E505*D505","v":0}]
[null,"Wall with double lightened brick up to 3m with mortar mixed M25"]
[5,"Mbushje me cakull","m³",1,null,{"$f":"E507*D507","v":0}]
[null,"Gravel layer, under foundations d=20cm"]
[6,"Trare themeli monolit b/a C - 16/20","m³",13.5,null,{"$f":"E509*D509","v":0}]
[null,"Monolithic foundation beam r/c  C - 16/20"]
[7,"Kollona b/a monolite C - 16/20, h ~ 4 m","m³",1.1499999999999999,null,{"$f":"E511*D511","v":0}]
[null,"Column r/c monolith C - 16/20, h ~ 4 m"]
[8,"Trare e arkitrare b/a C - 16/20, h ~ 4 m","m³",1.45,null,{"$f":"E513*D513","v":0}]
[null,"Beams and archs r/c C-16/20, h ~ 4 m"]
[9,"Soleta b/a te parapergatitura me tulla me 6 vrima, h = 25 cm, M-250","m²",18,null,{"$f":"E515*D515","v":0}]
[null,"R/C pre-prepared slabs with 6-hole bricks, h = 25 cm, M-250"]
[10,"F.V. Hekur betoni periodik Ø 6 - 10 mm","ton",0.4,null,{"$f":"E517*D517","v":0}]
[null,"SI of steel for periodic concrete Ø 6 - 10 mm"]
[11,"F.V. hekur betoni periodik Ø > 12 mm","ton",0.7,null,{"$f":"E519*D519","v":0}]
[null,"SI of steel for periodic concrete  Ø > 12 mm"]
[12,"Shtrese termoizoluese me polisterol t=5 cm","m²",18,null,{"$f":"E521*D521","v":0}]
[null,"Thermoinsulation layer with polysterol t=5cm"]
[13,"Shtrese betoni C  12/15 t=7 cm per pjerresi","m³",0.6,null,{"$f":"E523*D523","v":0}]
[null,"Concrete layer C  12/15 t=7 cm for slope"]
[14,"Hidroizolim me emulsion bitumi dhe 2 shtrese katrama 4mm","m²",36,null,{"$f":"E525*D525","v":0}]
[null,"Waterproofing with bitumen emulsion and 2 layers of tar 4mm"]
[15,"Shtrese betoni C 12/15 niveluese, 15 cm ","m³",2.7,null,{"$f":"E527*D527","v":0}]
[null,"Concrete leveling  layer C 12/15, 15 cm"]
[16,"Suva mur tulle h~4m me krah, llaç perzier M 25","m²",130,null,{"$f":"E529*D529","v":0}]
[null,"Plastering of brick walls h ~ 4m with arm, mixed mortar M 25"]
[17,"Suva solete h ~ 4 m me drejtues, me krah","m²",18,null,{"$f":"E531*D531","v":0}]
[null,"Plastering of slab h ~ 4 m with steering, with arm"]
[18,"Shtrese me pllaka grez porcelanato ","m²",18,null,{"$f":"E533*D533","v":0}]
[null,"Gress porcelain tiles layer"]
[19,"Plintuse grez importi, h = 10 cm","ml",16,null,{"$f":"E535*D535","v":0}]
[null,"Import gres  plinths, h = 10 cm"]
[20,"Shtrese betoni C 12/15, 10 cm per parapete","m³",0.35,null,{"$f":"E537*D537","v":0}]
[null,"Concrete layer C 12/15 for t=10 cm for parapette"]
[21,"Kapuc parapeti me llamarine me boje te pjekur","ml",16,null,{"$f":"E539*D539","v":0}]
[null,"Parapet hood with baked sheet metal"]
[22,"Kasete shkarkimi me llamarine me boje te pjekur 1.0mm","cope",1,null,{"$f":"E541*D541","v":0}]
[null,"Rain water discharge cassette with tin 1.0 mm"]
[23,"Ulluk shkarkimi vertikal me llamarine me boje te pjekur Ø 120","ml",4,null,{"$f":"E543*D543","v":0}]
[null,"Vertical tin gutter Ø 120"]
[24,"F.V Zgare filtruese per ujerat e shiut","cope",1,null,{"$f":"E545*D545","v":0}]
[null,"SI Filter grill rain water "]
[25,"F.V dyer metalike me llamarine te zeze 27.75 kg/m2","m²",3.36,null,{"$f":"E547*D547","v":0}]
[null,"SI black steel door 27.75 kg/m2"]
[26,"FV Dritare/vetrata d/alumini dyfish xham.","m²",0.5,null,{"$f":"E549*D549","v":0}]
[null,"SI alluminum window with double glass"]
[27,"FV zgara dekorativa hekuri me figuracion mesatare","ton",0.01,null,{"$f":"E551*D551","v":0}]
[null,"SI windows iron decoration"]
[28,"Boje hidroplastike brenda","m²",60,null,{"$f":"E553*D553","v":0}]
[null,"Painting of walls, inner"]
[29,"Boje hidroplastike importi cilesi e I-re per jashte","m²",75,null,{"$f":"E555*D555","v":0}]
[null,"Painting of walls, import of first quality exterior"]
[null,"Shuma  13","leke",null,null,{"$f":"SUM(F499:F556)","v":0}]
[null,"Sum  "]
[]
[null,"14. Depoja e ujerave te rrjetit te FU"]
[null,"Fresh water collection "]
[1,"Germim themele e plinta b>2m, ekskavator me goma, kova 0.25m³ shkarkim auto","m³",222,null,{"$f":"E562*D562","v":0}]
[null,"Excavation of soil with arm "]
[2,"Germim e mbushje dheu me krah kategoria III per themele, h = 1.5m","m³",11,null,{"$f":"E564*D564","v":0}]
[null,"Soil excavation and filling with arms category III for foundation h=1.5m"]
[3,"Transport materiale ndertimi,  dheu me auto deri 37 km Shkolla  “Ismet Nanushi”  - (Lanfilli Sharres) + tarifen e depozitimit","m³",233,null,{"$f":"E566*D566","v":0}]
[null,"Transport of building materials, soil with auto up to 37 km"]
[4,"Shtrese çakelli mbeturine kave t=20cm,  perhapur e ngjeshur me makineri","m³",11.2,null,{"$f":"E568*D568","v":0}]
[null,"Gravel layer, under foundations d=20cm"]
[5,"Mbushje me cakull","m³",37,null,{"$f":"E570*D570","v":0}]
[null,"Gravel filling"]
[6,"Shtrese betoni C 12/15 niveluese, 10 cm ","m³",5.6,null,{"$f":"E572*D572","v":0}]
[null,"Concrete leveling  layer C 12/15, 10 cm"]
[7,"Pllake themeli, trare e bazamente b/a  C 20/25","m³",13.65,null,{"$f":"E574*D574","v":0}]
[null,"Monolithic foundation beam r/c  C 20/25"]
[8,"Mure b/a t = 21-30 cm, C 20/25","m³",14,null,{"$f":"E576*D576","v":0}]
[null,"R/C wall, t=21-30, C 20/25"]
[9,"Soleta te plota momolite b/a  C 20/25","m³",11.95,null,{"$f":"E578*D578","v":0}]
[null,"R/C slab C 20/25"]
[10,"F.V. hekur betoni periodik Ø > 12 mm","ton",6.72,null,{"$f":"E580*D580","v":0}]
[null,"SI of steel for periodic concrete  Ø > 12 mm"]
[11,"Mur me tulle plota ne lartesi deri 3m me llaç perzier M 25","m³",0.35,null,{"$f":"E582*D582","v":0}]
[null,"Brick walls with mortar mixed M25"]
[12," F.V Kapak gize ","cope",1,null,{"$f":"E584*D584","v":0}]
[null,"SI cast iron sewer lid"]
[13,"F V waterstop tip RT 2000 10*20 & h/izolues tip rapid cement ne bashkimin e kampatave b/a.","ml",45,null,{"$f":"E586*D586","v":0}]
[null,"SI waterstop RT 2000 10*20"]
[14,"Konstruksione metalike te thjeshta","ton",0.05,null,{"$f":"E588*D588","v":0}]
[null,"Composite metal constructions"]
[15,"Galvanizim i konstruksioneve metalike (shkallet)","ton",0.05,null,{"$f":"E590*D590","v":0}]
[null,"Galvanized steel  for metallic constructions(stairs)"]
[16,"F.V. Hidroizolim me Masterseal 540","m2",94,null,{"$f":"E592*D592","v":0}]
[null,"Waterproffing with Masterseal 540"]
[17,"Suvatim me llac EMACO","m2",94,null,{"$f":"E594*D594","v":0}]
[null,"Plastering with EMACO"]
[null,"Shuma  14","leke",null,null,{"$f":"SUM(F562:F595)","v":0}]
[null,"Sum  "]
[]
[null,"15.  Rrethim kantieri"]
[null,"Site fence"]
[1,"Rrethim objekti me llamarine, h=2m, L=1ml","m²",210,null,{"$f":"E601*D601","v":0}]
[null,"Fencing of the object with sheet metal, h = 2m, L = 1ml"]
[2,"Transport dhe vendosje kabine e parapregatitur per stafin drejtues dhe punetoret","cope",2,null,{"$f":"E603*D603","v":0}]
[null,"Transport and placement of pre-prepared cabin for management staff and workers"]
[3,"Transport dhe vendosje kabine e parapregatitur per tualete","cope",2,null,{"$f":"E605*D605","v":0}]
[null,"Transport and installation of pre-prepared toilet cabin"]
[4,"FV Tabele per emertimin e punimeve ne objekt","cope",1,null,{"$f":"E607*D607","v":0}]
[null,"SI signage table for naming the works in the building"]
[null,"Shuma 15","leke",null,null,{"$f":"SUM(F601:F607)","v":0}]
[null,"Sum  "]
[]
[null,"Shuma A (1 deri ne 15)","leke",null,null,{"$f":"F609+F596+F557+F495+F474+F433+F288+F269+F208+F190+F199+F163+F114+F85+F56","v":0}]
[null,"Sum  A (1-15)"]
["."]
[null,"B.  INSTALIMET HIDROSANITARE DHE KLIMATIZIMI"]
[null,"HYDRAULIC INSTALLATION AND HVAC"]
[null,"1. Ujesjelles kanalizimi"]
[null,"1.Water supply and waste water"]
[1,"FV lavaman porcelani importi me mishelator","cope",79,null,{"$f":"E619*D619","v":0}]
[null,"SI import porcelain sink with taps and accessories"]
[2,"FV Lavapjate importi inoksi ","cope",11,null,{"$f":"E621*D621","v":0}]
[null,"SI import stainless steel sinks"]
[3,"F.V WC allafrenga importi","cope",12,null,{"$f":"E623*D623","v":0}]
[null,"SI  import wc "]
[4,"F.V WC allaturka importi","cope",72,null,{"$f":"E625*D625","v":0}]
[null,"SI Traditional Toilet"]
[5,"F.V lavaman porcelani importi me mishelator per PAK","cope",9,null,{"$f":"E627*D627","v":0}]
[null,"SI sink for Disabled People"]
[6,"F.V WC allafrenga importi per PAK","cope",9,null,{"$f":"E629*D629","v":0}]
[null,"SI WC for Disabled People"]
[7,"Germim e mbushje dheu me krah per kanale kategoria III, h = 1.5 m","m³ ",24.5,null,{"$f":"D631*E631","v":0}]
[null,"Soil excavation and filling with arms for kanals III, h=1.5m"]
[8,"Transport dheu me auto deri 37 km Shkolla  “Ismet Nanushi”  - (Lanfilli Sharres) + tarifen e depozitimit","m³",14.3,null,{"$f":"E633*D633","v":0}]
[null,"Transport of building materials, soil with auto up to 37 km"]
[9,"Mbushje rafshim ngjeshje toke e zakonshme","   m³",4.3,null,{"$f":"E635*D635","v":0}]
[null,"Common soil filling, flattening and compaction"]
[10,"Shtrese stabilizanti t-10cm","m³",3.2,null,{"$f":"E637*D637","v":0}]
[null,"Stabilizer layer t-10cm"]
[11,"FV Shtrese rere ","m³ ",2.75,null,{"$f":"D639*E639","v":0}]
[null,"SI sand layer"]
[12,"FV Saracineske nentokesore me aks te gjate dhe puseta gize komplet per lidhjen e furnizimit me uje nga rrjeti urban ","cope ",1,null,{"$f":"D641*E641","v":0}]
[null,"SI underground valves with long axis and cast iron manhole suite to connect with the urban water supply network"]
[13,"F.V Tuba e rakorderi ujesjellesi PE d=75mm, t = 6.7 mm, PN 10","ml ",78,null,{"$f":"D643*E643","v":0}]
[null,"SI Water supply pipe PE d=75 mm, t = 6.7 mm, PN 10"]
[14,"F.V Tuba e rakorderi ujesjellesi PE d=63mm, PN 16","ml ",41,null,{"$f":"D645*E645","v":0}]
[null,"SI Water supply pipe PE d=63 mm, t = 6.7 mm, PN 10"]
[15,"F.V Tuba e rakorderi ujesjellesi PE d=50mm, PN 16","ml ",62,null,{"$f":"D647*E647","v":0}]
[null,"SI Water supply pipe PE d=50 mm, PN 10"]
[16,"F.V Tuba e rakorderi ujesjellesi PPR d=40mm, PN 16","ml ",49,null,{"$f":"D649*E649","v":0}]
[null,"SI Water supply pipe PPR d=40mm,  PN 16"]
[17,"F.V Tuba e rakorderi ujesjellesi PPR d=20~32mm, PN 16","ml ",12,null,{"$f":"D651*E651","v":0}]
[null,"SI Water supply pipe PPR d=20-32mm,  PN 16"]
[18,"Termoizolim tubi Ø 21/2\" me armofleks (d76x9)","ml",78,null,{"$f":"D653*E653","v":0}]
[null,"SI Pipe thermoizolation 2x1/2\" armoflex (d42x9)"]
[19,"Termoizolim tubi Ø 2\" me armofleks (d64x9)","ml",41,null,{"$f":"D655*E655","v":0}]
[null,"SI Pipe thermoizolation 2\" armoflex (d42x9)"]
[20,"Termoizolim tubi Ø 11/2\" me armofleks (d54x9)","ml",62,null,{"$f":"D657*E657","v":0}]
[null,"SI Pipe thermoizolation 11/2\" armoflex (d54x9)"]
[21,"Termoizolim tubi Ø 11/4\" me armofleks (d42x9)","ml ",49,null,{"$f":"D659*E659","v":0}]
[null,"SI Pipe thermoizolation 1x1/4\" armoflex (d42x9)"]
[22,"Termoizolim tubi Ø 1\" me armofleks (d35x9)","ml ",12,null,{"$f":"D661*E661","v":0}]
[null,"SI Pipe thermoizolation 1\" armoflex (d35x9)"]
[23,"FV Filter uji me rrjete DN 50Pn 10","cope ",1,null,{"$f":"D663*E663","v":0}]
[null,"SI Water filter with mesh DN 50Pn 10"]
[24,"FV Valvol nderprerese  DN50 mm","cope ",2,null,{"$f":"D665*E665","v":0}]
[null,"SI Shut-off valve DN50 mm"]
[25,"FV Valvol moskthimi DN50 PN 6-10bar","cope ",1,null,{"$f":"D667*E667","v":0}]
[null,"SI Non-return valve DN50 PN 6-10bar"]
[26,"FV Tubacione  PEX/a DN1/2 ( 16x2.0) mm i termoizoluar  ð =6 mm ","ml",810,null,{"$f":"E669*D669","v":0}]
[null,"SI PEX / a DN1 / 2 pipes (16x2.0) mm thermally insulated ð = 6 mm"]
[27,"FV Bryla AL-  PEX   16x1/2 F ","cope",335,null,{"$f":"E671*D671","v":0}]
[null,"SI Elbows AL-  PEX   16x1/2 F"]
[28,"F.V Tuba e rakorderi ujesjellesi PE d=63mm, PN 16","ml",12,null,{"$f":"D673*E673","v":0}]
[null,"SI Water supply pipes and fittings PPR d = 63 , PN 16"]
[29,"Termoizolim tubi Ø 2\" me armofleks (d64x9)","ml",12,null,{"$f":"D675*E675","v":0}]
[null,"SI Pipe thermoizolation 2\" armoflex (d64x9)"]
[30,"F.V Rakorderi per mberthim tubosh ","kg",165,null,{"$f":"D677*E677","v":0}]
[null,"SI Fittings for pipe connection"]
[31,"F.V Kolektor shpendares 3/4\" ( 4+4 )","cope",5,null,{"$f":"D679*E679","v":0}]
[null,"SI Collector set 3/4\" ( 4+4 ) (kit complete with bouquets + cassettes)"]
[32,"F.V Kolektor shpendares 3/4\" ( 5+5 )","cope",4,null,{"$f":"D681*E681","v":0}]
[null,"SI Collector set 3/4\" ( 5+5 ) (kit complete with bouquets + cassettes)"]
[33,"F.V Kolektor shpendares 1 1/4\" ( 7+7 )","cope",17,null,{"$f":"E683*D683","v":0}]
[null,"SI Collector set 1 1/4\" ( 7+7 ) (kit complete with bouquets + cassettes)"]
[34,"FV Saracineska kendore  me hollandez  Ø 1\\2\"  te kolektoret ","cope",32,null,{"$f":"E685*D685","v":0}]
[null,"SI Angular valves with Dutch Ø 1 \\ 2 \"of collectors"]
[35,"FV Saracineska kendore  me hollandez  Ø3/4 \"  te kolektoret ","cope",6,null,{"$f":"E687*D687","v":0}]
[null,"SI Angular valves with Dutch O3 / 4 \"of collectors"]
[36,"FV Reduksione me fileto femer ne njeren ane 16 mm x 1/2\"","cope",24,null,{"$f":"E689*D689","v":0}]
[null,"SI Reductions with female fillets on one side 16 mm x 1/2 \""]
[37,"FV Tape1/2\"","cope",8,null,{"$f":"E691*D691","v":0}]
[null,"SI  Tape 1/2\""]
[38,"FV Mini valvula nderprerese per paisjet sanitare ","cope ",335,null,{"$f":"D693*E693","v":0}]
[null,"SI Mini shut-off valve for sanitary equipment"]
[39,"FV Elemente mberthyes e fiksues ","kompl ",3,null,{"$f":"D695*E695","v":0}]
[null,"SI fixing and fasteners elements"]
[40,"F.V. Pilete dyshemeje Ø 50 mm ","cope",20,null,{"$f":"E697*D697","v":0}]
[null,"SI Floor piletes Ø 50 mm"]
[41,"F.V Puseta betoni H-100 cm, me kapak gize Ø 60 cm","cope ",6,null,{"$f":"D699*E699","v":0}]
[null,"SI Concrete manhole H-100 cm, with cast iron lid Ø 60 cm"]
[42,"FV Puseta b/a shiu 40x60cm, h=100cm me kapak gize","cope",16,null,{"$f":"E701*D701","v":0}]
[null,"SI rain water manhole 40x60cm, h = 100cm with cast iron lid"]
[43,"FV Tub shkarkimi PEHD  i rrullosur d200 mm + rakorderi","   ml",185,null,{"$f":"D703*E703","v":0}]
[null,"SI discharge PEHD rolled pipes d200mm +fittings"]
[44,"F.V Tub shkarkimi  PP gri me gota dhe gomina d 160  mm","ml ",86,null,{"$f":"D705*E705","v":0}]
[null,"SI discharge pipes PP gray with cups and rubber d 160 mm"]
[45,"F.V Tub shkarkimi  PP  gri me gota dhe gomina d 110  mm","ml ",225,null,{"$f":"D707*E707","v":0}]
[null,"SI discharge pipes PP gray with cups and rubber d 110 mm"]
[46,"F.V Tub shkarkimi  PP  d 50 mm ","ml ",452,null,{"$f":"D709*E709","v":0}]
[null,"SI discharge pipes PP d 50 mm"]
[47,"FV  Bryl 45º     PP     Ø110"," cope",152,null,{"$f":"D711*E711","v":0}]
[null,"SI Elbows 45º     PP     Ø110"]
[48,"FV  Bryl 45º     PP     Ø 50"," cope",310,null,{"$f":"D713*E713","v":0}]
[null,"SI Elbows 45º     PP     Ø 50"]
[49,"FV  Bryl 45º   PP   dhe ф160"," cope",18,null,{"$f":"D715*E715","v":0}]
[null,"SI Elbows 45º   PP   dhe ф160"]
[50,"FV  Bryl  90º   PP   Ø110 per klozetat "," cope",28,null,{"$f":"D717*E717","v":0}]
[null,"SI Elbows 90º   PP   Ø110 for toilets"]
[51,"FV  Bryl  90º     PP          Ø 50"," cope",185,null,{"$f":"D719*E719","v":0}]
[null,"SI Elbows  90º     PP          Ø 50"]
[52,"FV   Reduksione  PP    Ø50-Ø40"," cope",2,null,{"$f":"D721*E721","v":0}]
[null,"SI Reductions PP    Ø50-Ø40"]
[53,"F.V Reduksione  PP    Ø160-Ø100"," cope",31,null,{"$f":"D723*E723","v":0}]
[null,"SI Reductions PP    Ø160-Ø100"]
[54,"F.V Brage  PP     DN 50/50"," cope",85,null,{"$f":"D725*E725","v":0}]
[null,"SI Adapter  PP DN 50/50"]
[55,"FV Brage  PP    DN110/110"," cope",42,null,{"$f":"D727*E727","v":0}]
[null,"SI Adapter PP    DN110/110"]
[56,"FV Brage PP    DN 110/50"," cope",36,null,{"$f":"D729*E729","v":0}]
[null,"SI Adapter PP    DN 110/50"]
[57,"F.V Tredegesh PP    DN 110/50/110"," cope",8,null,{"$f":"D731*E731","v":0}]
[null,"SI T-Branch  Tredegesh PP DN 110/50/110",null," "]
[58,"FV  Qafore  vete shuarse Ø 100 mm ,  dhe Ø50 mm"," cope",12,null,{"$f":"D733*E733","v":0}]
[null,"SI Self-extinguishing collar(strap) Ø 100 mm, and Ø50 mm"]
[59,"FV Fasheta metalike me seksion rrethor dhe gomina elastomere per mberthimin e tubave Ø 100 "," cope",112,null,{"$f":"D735*E735","v":0}]
[null,"SI Metal bands with circular section and elastomeric rubber for pipe bonding Ø 100"]
[60,"FV Pike pastrimi e  inspektimi horizontale   Ø 110"," cope",12,null,{"$f":"D737*E737","v":0}]
[null,"Horizontal cleaning and inspection point Ø 110"]
[61,"F.V Kapuç ajrimi  ne tarrace vertikal   Ø 110mm"," cope",8,null,{"$f":"D739*E739","v":0}]
[null,"Si Ventilation hood on vertical terrace Ø 110mm"]
[62,"FV Elemente mberthyes e fiksues ","cope ",140,null,{"$f":"D741*E741","v":0}]
[null,"SI fixing and fasteners elements"]
[63,"Mates uji d = 65 mm","cope",1,null,{"$f":"D743*E743","v":0}]
[null,"SI water meter d=65mm"]
[null,"shuma  1","leke",null,null,{"$f":"SUM(F618:F744)","v":0}]
[null,"Sum  "]
[null,"2. SISTEMI HVAC"]
[null,"2. HVAC SYSTEM"]
[null,"2.a Kati perdhe Zona e kopshtit"]
[null,"2.a Ground floor and Kindergarten zone"]
[1,"Deviatore bakri per 2 tuba","cope",12,null,{"$f":"E751*D751","v":0}]
[null,"Refnet branch 2 pipe type"]
[2,"Tubacione bakri te termoizoluara paraparakisht. veshje antikondense. permase Ø 1/4'' (6.4mm) te pershtatshme per freon R410A","ml",97,null,{"$f":"E753*D753","v":0}]
[null,"Insulated cooper pipes with anti condense layer according to pipe dia. Ø 1/4'' (6.4mm) for R 410"]
[3,"Tubacione bakri te termoizoluara paraparakisht. veshje antikondense. permase Ø 3/8'' (9.5mm) te pershtatshme per freon R410A","ml",69,null,{"$f":"E755*D755","v":0}]
[null,"Insulated cooper pipes with anti condense layer according to pipe dia. Ø 3/8'' (9.5mm) for R 410"]
[4,"Tubacione bakri te termoizoluara paraparakisht. veshje antikondense. permase Ø 1/2'' (12.7 mm) te pershtatshme per freon R410A","ml",99,null,{"$f":"E757*D757","v":0}]
[null,"Insulated cooper pipes with anti condense layer according to pipe dia. Ø 1/2'' (12.7 mm) for R 410"]
[5,"Tubacione bakri te termoizoluara paraparakisht. veshje antikondense. permase Ø 5/8'' (15.9 mm) te pershtatshme per freon R410A","ml",20,null,{"$f":"E759*D759","v":0}]
[null,"Insulated cooper pipes with anti condense layer according to pipe dia. Ø 5/8'' (15.9 mm) for R 410"]
[6,"Tubacione bakri te drejta. permase Ø 1'' (28.6 mm) te pershtatshme per freon R410A","ml",51,null,{"$f":"E761*D761","v":0}]
[null,"Insulated rigid cooper pipes with anti condense layer according to pipe dia. Ø 1'' (28.6 mm) for R 410"]
[7,"Termoizolim gome me qeliza te mbyllura DN 7/8\"-1\"1/4","ml",51,null,{"$f":"E763*D763","v":0}]
[null,"Rubber thermal insulation DN 7/8\"-1\"1/4"]
[8,"Tubacione kondensati dhe rakorderi","ml",97,null,{"$f":"E765*D765","v":0}]
[null,"Condense PP pipes for air conditioning system including fittings"]
[9,"Aksesore te ndryshem saldimi si azot. oksigjen. acetilen","tot.",1,null,{"$f":"E767*D767","v":0}]
[null,"Weldding materials nitogen.oxygen. acetylene"]
[10,"Stafazh dhe suporte per fiksimin  e tubave dhe Pajisjeve","tot.",1,null,{"$f":"E769*D769","v":0}]
[null,"Piping supports and accessories "]
[11,"Kabell elektrik 2x1.0 mm per instalimin e sistemit VRV","ml",120,null,{"$f":"E771*D771","v":0}]
[null,"Electric cable 2x1.0 mm for VRV system"]
[12,"Gaz frigoriferik R410A","kg",5,null,{"$f":"E773*D773","v":0}]
[null,"Refrigerant R410 A"]
[13,"Pompe nxehtesie me kompresor inverter tip \"scroll\" me freon R410A per sisteme aplikimi VRV. me kontroll te temperatures se freonit ne dalje. me kapacitet termik ne ftohje 39 kW. kapacitet termik ne ngrohje 40 kW. i kondesuar me ajer e pajisur me panelin e kontrollit qendror","cope",1,null,{"$f":"E775*D775","v":0}]
[null,"Scroll compressor heat pump. cooling capacity 39 kw/ heating capacity 40 kw.  R410 A refrigerant for VRV applications equiped with temperature sensor. including control pannel."]
[14,"Pajisje tokesore. me fuqi termike ne ftohje 2.7 kW. fuqi termike ne ngrohje 3 kW me fryrje rreth 117 l/s","cope",1,null,{"$f":"E777*D777","v":0}]
[null,"Indoor unit console type cooling capacity 2.7 kw/heating capacity 3 kw. air flow 117 l/s"]
[15,"Pajisje tokesore. me fuqi termike ne ftohje 3.5 kW. fuqi termike ne ngrohje 4.0 kW me fryrje rreth 135 l/s","cope",11,null,{"$f":"E779*D779","v":0}]
[null,"Indoor unit console type cooling capacity 3.5 kw/heating capacity 4.0 kw. air flow 135 l/s"]
[16,"Pajisje tokesore. me fuqi termike ne ftohje 4.5 kW. fuqi termike ne ngrohje 5.0 kW me fryrje rreth 185 l/s","cope",1,null,{"$f":"E781*D781","v":0}]
[null,"Indoor unit console type cooling capacity 4.5 kw/heating capacity 5.0 kw. air flow 185 l/s"]
[17,"Komanda murale me funksion te termostatit. programatorit ditor dhe javor. me kontroll dhe diagnostikim individual te çdo Pajisje te brendshme VRV. Lidhja me kabell 2x1.0 mm\n","cope",13,null,{"$f":"E783*D783","v":0}]
[null,"Wall thermostat. weekly and daily schedule option. error reading display for VRV indoor units. Connection cable 2x1.0 mm"]
[null,"shuma  2.a","leke",null,null,{"$f":"SUM(F751:F784)","v":0}]
[null,"Sum  "]
[null,"2.b Palestra"]
[null,"2.b Gym"]
[1,"Deviatore bakri per 2 tuba","cope",3,null,{"$f":"E789*D789","v":0}]
[null,"Refnet branch 2 pipe type"]
[2,"Tubacione bakri te termoizoluara paraparakisht. veshje antikondense. permase Ø 3/8'' (9.5mm) te pershtatshme per freon R410A","ml",25,null,{"$f":"E791*D791","v":0}]
[null,"Insulated cooper pipes with anti condense layer according to pipe dia. Ø 1/4'' (6.4mm) for R 410"]
[3,"Tubacione bakri te termoizoluara paraparakisht. veshje antikondense. permase Ø 5/8'' (15.9 mm) te pershtatshme per freon R410A","ml",20,null,{"$f":"E793*D793","v":0}]
[null,"Insulated cooper pipes with anti condense layer according to pipe dia. Ø 5/8'' (15.9 mm) for R 410"]
[4,"Tubacione bakri te drejta. permase Ø 7/8'' (22.2 mm) te pershtatshme per freon R410A","ml",25,null,{"$f":"E795*D795","v":0}]
[null,"Insulated rigid cooper pipes with anti condense layer according to pipe dia. Ø 7/8'' (22.2 mm) for R 410"]
[5,"Tubacione bakri te drejta. permase Ø 1'' (28.6 mm) te pershtatshme per freon R410A","ml",20,null,{"$f":"E797*D797","v":0}]
[null,"Insulated rigid cooper pipes with anti condense layer according to pipe dia. Ø 1'' (28.6 mm) for R 410"]
[6,"Rakorderi bakri diam. te ndryshem","tot.",1,null,{"$f":"E799*D799","v":0}]
[null,"Copper pipe fittings "]
[7,"Termoizolim gome me qeliza te mbyllura DN 7/8\"-1\"1/4","ml",20,null,{"$f":"E801*D801","v":0}]
[null,"Rubber thermal insulation DN 7/8\"-1\"1/4"]
[8,"Tubacione kondensati dhe rakorderi","ml",70,null,{"$f":"E803*D803","v":0}]
[null,"Condense PP pipes for air conditioning system including fittings"]
[9,"Aksesore te ndryshem saldimi si azot. oksigjen. acetilen","tot.",1,null,{"$f":"E805*D805","v":0}]
[null,"Weldding materials nitogen.oxygen. acetylene"]
[10,"Stafazh dhe suporte per fiksimin  e tubave dhe Pajisjeve","tot.",1,null,{"$f":"E807*D807","v":0}]
[null,"Piping supports and accessories "]
[11,"Kabell elektrik 2x1.0 mm per instalimin e sistemit VRV","ml",77,null,{"$f":"E809*D809","v":0}]
[null,"Electric cable 2x1.0 mm for VRV system"]
[12,"Gaz frigoriferik R410A","kg",4,null,{"$f":"E811*D811","v":0}]
[null,"Refrigerant R410 A"]
[13,"Tubacione dhenje dhe thithje ajri prej shkume poliuretani te zgjeruar. me dendesi 48Kg/m3. (panel sandwich). e veshur me flete alumini  brenda/jashte 60  micron. bashke me aksesoret per prodhimin montimin dhe fiksimin e tyre ","m2",120,null,{"$f":"E813*D813","v":0}]
[null,"Polyurethane air ducts 48Kg/m3 density (sandwic panel) with aluminum foil 60 micron including installation and fixing accessories"]
[14,"Grile per thithjen e ajrit. 500x400 mm","cope",6,null,{"$f":"E815*D815","v":0}]
[null,"Air inlet grilles 500x400 mm"]
[15,"Difuzor ajri me kone te regjistrueshem D.250 mm","cope",32,null,{"$f":"E817*D817","v":0}]
[null,"Air diffuser adjustable D 250 mm"]
[16,"Pompe nxehtesie me kompresor inverter tip \"scroll\" me freon R410A per sisteme aplikimi VRV. me kontroll te temperatures se freonit ne dalje. me kapacitet termik ne ftohje 120 kW. kapacitet termik ne ngrohje 120 kW. i kondesuar me ajer.\n","cope",1,null,{"$f":"E819*D819","v":0}]
[null,"Scroll compressor heat pump. cooling capacity 120 kw/ heating capacity 120 kw.  R410 A refrigerant for VRV applications equiped with temperature sensor. including control pannel."]
[17,"Pajisje kanalore e varur ne tavan. me fuqi termike ne ftohje 28kW. fuqi termike ne ngrohje 30 kW me presion statik jo me pak se 80 Pa\n","cope",4,null,{"$f":"E821*D821","v":0}]
[null,"Celing ducted indoor unit. cooling capacity 28 kw. heating capacity 30 kw. min static pressure 80 Pa"]
[18,"Komanda murale me funksion te termostatit. programatorit ditor dhe javor. me kontroll dhe diagnostikim individual te çdo Pajisje te brendshme VRV. Lidhja me kabell 2x1.0 mm\n","cope",4,null,{"$f":"E823*D823","v":0}]
[null,"Wall thermostat. weekly and daily schedule option. error reading display for VRV indoor units. Connection cable 2x1.0 mm"]
[null,"shuma  2.b","leke",null,null,{"$f":"SUM(F789:F824)","v":0}]
[null,"Sum  "]
[null,"2.c Kati Perdhe "]
[null,"2.c Graund floor"]
[1,"Deviatore bakri per 2 tuba","cope",5,null,{"$f":"E829*D829","v":0}]
[null,"Refnet branch 2 pipe type"]
[2,"Set degezim per tuba bakri","cope",4,null,{"$f":"E831*D831","v":0}]
[null,"Refnet branch piping kit"]
[3,"Tubacione bakri te termoizoluara paraparakisht. veshje antikondense. permase Ø 1/4'' (6.4mm) te pershtatshme per freon R410A","ml",57,null,{"$f":"E833*D833","v":0}]
[null,"Insulated cooper pipes with anti condense layer according to pipe dia. Ø 1/4'' (6.4mm) for R 410"]
[4,"Tubacione bakri te termoizoluara paraparakisht. veshje antikondense. permase Ø 3/8'' (9.5mm) te pershtatshme per freon R410A","ml",31,null,{"$f":"E835*D835","v":0}]
[null,"Insulated cooper pipes with anti condense layer according to pipe dia. Ø 3/8'' (9.5mm) for R 410"]
[5,"Tubacione bakri te termoizoluara paraparakisht. veshje antikondense. permase Ø 1/2'' (12.7 mm) te pershtatshme per freon R410A","ml",59,null,{"$f":"E837*D837","v":0}]
[null,"Insulated cooper pipes with anti condense layer according to pipe dia. Ø 1/2'' (12.7 mm) for R 410"]
[6,"Tubacione bakri te termoizoluara paraparakisht. veshje antikondense. permase Ø 5/8'' (15.9 mm) te pershtatshme per freon R410A","ml",20,null,{"$f":"E839*D839","v":0}]
[null,"Insulated cooper pipes with anti condense layer according to pipe dia. Ø 5/8'' (15.9 mm) for R 410"]
[7,"Tubacione bakri te termoizoluara paraparakisht. veshje antikondense. permase Ø 3/4''  ( 19.06 ) te pershtatshme per freon R410A","ml",47,null,{"$f":"E841*D841","v":0}]
[null,"Insulated cooper pipes with anti condense layer according to pipe dia. Ø 3/4'' (19.06 mm) for R 410"]
[8,"Tubacione bakri te drejta. permase Ø 7/8'' (22.2 mm) te pershtatshme per freon R410A","ml",50,null,{"$f":"E843*D843","v":0}]
[null,"Insulated rigid cooper pipes with anti condense layer according to pipe dia. Ø 7/8'' (22.2 mm) for R 410"]
[9,"Tubacione bakri te drejta. permase Ø 1'' (28.6 mm) te pershtatshme per freon R410A","ml",51,null,{"$f":"E845*D845","v":0}]
[null,"Insulated rigid cooper pipes with anti condense layer according to pipe dia. Ø 1'' (28.6 mm) for R 410"]
[10,"Tubacione bakri te drejta. permase Ø 1\"1/4 (34 mm) te pershtatshme per freon R410A","ml",15,null,{"$f":"E847*D847","v":0}]
[null,"Insulated rigid cooper pipes with anti condense layer according to pipe dia. Ø 1''1/4 (34 mm) for R 410"]
[11,"Tubacione bakri te drejta. permase Ø 1\"1/2 (42 mm) te pershtatshme per freon R410A","ml",10,null,{"$f":"E849*D849","v":0}]
[null,"Insulated rigid cooper pipes with anti condense layer according to pipe dia. Ø 1''1/2 (42 mm) for R 410"]
[12,"Rakorderi bakri diam. te ndryshem","tot.",1,null,{"$f":"E851*D851","v":0}]
[null,"Copper pipe fittings "]
[13,"Termoizolim gome me qeliza te mbyllura DN 7/8\"-1\"1/4","ml",111,null,{"$f":"E853*D853","v":0}]
[null,"Rubber thermal insulation DN 7/8\"-1\"1/4"]
[14,"Tubacione kondensati dhe rakorderi","ml",120,null,{"$f":"E855*D855","v":0}]
[null,"Condense PP pipes for air conditioning system including fittings"]
[15,"Aksesore te ndryshem saldimi si azot. oksigjen. acetilen","tot.",1,null,{"$f":"E857*D857","v":0}]
[null,"Weldding materials nitogen.oxygen. acetylene"]
[16,"Stafazh dhe suporte per fiksimin  e tubave dhe Pajisjeve","tot.",1,null,{"$f":"E859*D859","v":0}]
[null,"Piping supports and accessories "]
[17,"Kabell elektrik 2x1.0 mm per instalimin e sistemit VRV","ml",117,null,{"$f":"E861*D861","v":0}]
[null,"Electric cable 2x1.0 mm for VRV system"]
[18,"Gaz frigoriferik R410A","kg",7,null,{"$f":"E863*D863","v":0}]
[null,"Refrigerant R410 A"]
[19,"Tubacione dhenje dhe thithje ajri prej shkume poliuretani te zgjeruar. me dendesi 48Kg/m3. (panel sandwich). e veshur me flete alumini  brenda/jashte 60  micron. bashke me aksesoret per prodhimin montimin dhe fiksimin e tyre ","m2",10,null,{"$f":"E865*D865","v":0}]
[null,"Polyurethane air ducts 48Kg/m3 density (sandwic panel) with aluminum foil 60 micron including installation and fixing accessories"]
[20,"Grile per thithjen e ajrit. 550x500 mm","cope",12,null,{"$f":"E867*D867","v":0}]
[null,"Air inlet grilles 500x400 mm"]
[21,"Grile per dhenien e ajrit. 700x200 mm","cope",12,null,{"$f":"E869*D869","v":0}]
[null,"Air supply grilles 500x400 mm"]
[22,"Pompe nxehtesie me kompresor inverter tip \"scroll\" me freon R410A per sisteme aplikimi VRV. me kontroll te temperatures se freonit ne dalje. me kapacitet termik ne ftohje 85 kW. kapacitet termik ne ngrohje 85 kW. i kondesuar me ajer.\n","cope",1,null,{"$f":"E871*D871","v":0}]
[null,"Scroll compressor heat pump. cooling capacity 85 kw/ heating capacity 85 kw.  R410 A refrigerant for VRV applications equiped with temperature sensor. including control pannel."]
[23,"Pajisje kanalore e fshehur mbi tavan te varur. me fuqi termike ne ftohje 3.5 kW. fuqi termike ne ngrohje 4.0 kW me presion statik jo me pak se 80 Pa\n","cope",1,null,{"$f":"E873*D873","v":0}]
[null,"Celing ducted indoor unit. cooling capacity 3.5 kw. heating capacity 4.0 kw. min static pressure 80 Pa"]
[24,"Pajisje kanalore e fshehur mbi tavan te varur. me fuqi termike ne ftohje 4.5 kW. fuqi termike ne ngrohje 5.0 kW  me presion statik jo me pak se 80 Pa\n","cope",4,null,{"$f":"E875*D875","v":0}]
[null,"Celing ducted indoor unit. cooling capacity 4.5 kw heating capacity 5.0 kw min static pressure 80 Pa"]
[25,"Pajisje kanalore e fshehur mbi tavan te varur. me fuqi termike ne ftohje 5.5 kW. fuqi termike ne ngrohje 6.3 kW  me presion statik jo me pak se 80 Pa\n","cope",7,null,{"$f":"E877*D877","v":0}]
[null,"Celing ducted indoor unit. cooling capacity 5.5 kw heating capacity 6.3 kw min static pressure 80 Pa"]
[26,"Pajisje tavanore tip kasete. me fuqi termike ne ftohje 2.2 kW. fuqi termike ne ngrohje 2.7 kW  me presion statik jo me pak se 80 Pa\n","cope",1,null,{"$f":"E879*D879","v":0}]
[null,"Cassette indoor unit. cooling capacity 2.2 kw heating capacity 2.7 kw min static pressure 80 Pa"]
[27,"Pajisje tavanore tip kasete. me fuqi termike ne ftohje 4.5 kW. fuqi termike ne ngrohje 5.0 kW  me presion statik jo me pak se 80 Pa\n","cope",5,null,{"$f":"E881*D881","v":0}]
[null,"Cassette indoor unit. cooling capacity 4.5 kw heating capacity 5.0 kw min static pressure 80 Pa"]
[28,"Komanda murale me funksion te termostatit. programatorit ditor dhe javor. me kontroll dhe diagnostikim individual te çdo Pajisje te brendshme VRV. Lidhja me kabell 2x1.0 mm\n","cope",18,null,{"$f":"E883*D883","v":0}]
[null,"Wall thermostat. weekly and daily schedule option. error reading display for VRV indoor units. Connection cable 2x1.0 mm"]
[null,"shuma  2.c","leke",null,null,{"$f":"SUM(F829:F884)","v":0}]
[null,"Sum  "]
[null,"2.d Kati Pare"]
[null,"2.d Kati Pare"]
[1,"Deviatore bakri per 2 tuba","cope",8,null,{"$f":"E889*D889","v":0}]
[null,"Refnet branch 2 pipe type"]
[2,"Set degezim per tuba bakri","cope",7,null,{"$f":"E891*D891","v":0}]
[null,"Refnet branch piping kit"]
[3,"Tubacione bakri te termoizoluara paraparakisht. veshje antikondense. permase Ø 1/4'' (6.4mm) te pershtatshme per freon R410A","ml",77,null,{"$f":"E893*D893","v":0}]
[null,"Insulated cooper pipes with anti condense layer according to pipe dia. Ø 1/4'' (6.4mm) for R 410"]
[4,"Tubacione bakri te termoizoluara paraparakisht. veshje antikondense. permase Ø 3/8'' (9.5mm) te pershtatshme per freon R410A","ml",52,null,{"$f":"E895*D895","v":0}]
[null,"Insulated cooper pipes with anti condense layer according to pipe dia. Ø 3/8'' (9.5mm) for R 410"]
[5,"Tubacione bakri te termoizoluara paraparakisht. veshje antikondense. permase Ø 1/2'' (12.7 mm) te pershtatshme per freon R410A","ml",79,null,{"$f":"E897*D897","v":0}]
[null,"Insulated cooper pipes with anti condense layer according to pipe dia. Ø 1/2'' (12.7 mm) for R 410"]
[6,"Tubacione bakri te termoizoluara paraparakisht. veshje antikondense. permase Ø 5/8'' (15.9 mm) te pershtatshme per freon R410A","ml",81,null,{"$f":"E899*D899","v":0}]
[null,"Insulated cooper pipes with anti condense layer according to pipe dia. Ø 5/8'' (15.9 mm) for R 410"]
[7,"Tubacione bakri te termoizoluara paraparakisht. veshje antikondense. permase Ø 3/4''  ( 19.06 ) te pershtatshme per freon R410A","ml",64,null,{"$f":"E901*D901","v":0}]
[null,"Insulated cooper pipes with anti condense layer according to pipe dia. Ø 3/4'' (19.06 mm) for R 410"]
[8,"Tubacione bakri te drejta. permase Ø 7/8'' (22.2 mm) te pershtatshme per freon R410A","ml",50,null,{"$f":"E903*D903","v":0}]
[null,"Insulated rigid cooper pipes with anti condense layer according to pipe dia. Ø 7/8'' (22.2 mm) for R 410"]
[9,"Tubacione bakri te drejta. permase Ø 1'' (28.6 mm) te pershtatshme per freon R410A","ml",51,null,{"$f":"E905*D905","v":0}]
[null,"Insulated rigid cooper pipes with anti condense layer according to pipe dia. Ø 1'' (28.6 mm) for R 410"]
[10,"Tubacione bakri te drejta. permase Ø 1\"1/4 34 mm) te pershtatshme per freon R410A","ml",15,null,{"$f":"E907*D907","v":0}]
[null,"Insulated rigid cooper pipes with anti condense layer according to pipe dia. Ø 1''1/4 (34 mm) for R 410"]
[11,"Tubacione bakri te drejta. permase Ø 1\"1/2 (42 mm) te pershtatshme per freon R410A","ml",10,null,{"$f":"E909*D909","v":0}]
[null,"Insulated rigid cooper pipes with anti condense layer according to pipe dia. Ø 1''1/2 (42 mm) for R 410"]
[12,"Rakorderi bakri diam. te ndryshem","tot.",1,null,{"$f":"E911*D911","v":0}]
[null,"Copper pipe fittings "]
[13,"Termoizolim gome me qeliza te mbyllura DN 7/8\"-1\"1/4","ml",111,null,{"$f":"E913*D913","v":0}]
[null,"Rubber thermal insulation DN 7/8\"-1\"1/4"]
[14,"Tubacione kondensati dhe rakorderi","ml",132,null,{"$f":"E915*D915","v":0}]
[null,"Condense PP pipes for air conditioning system including fittings"]
[15,"Aksesore te ndryshem saldimi si azot. oksigjen. acetilen","tot.",1,null,{"$f":"E917*D917","v":0}]
[null,"Weldding materials nitogen.oxygen. acetylene"]
[16,"Stafazh dhe suporte per fiksimin  e tubave dhe Pajisjeve","tot.",1,null,{"$f":"E919*D919","v":0}]
[null,"Piping supports and accessories "]
[17,"Kabell elektrik 2x1.0 mm per instalimin e sistemit VRV","ml",121,null,{"$f":"E921*D921","v":0}]
[null,"Electric cable 2x1.0 mm for VRV system"]
[18,"Gaz frigoriferik R410A","kg",9,null,{"$f":"E923*D923","v":0}]
[null,"Refrigerant R410 A"]
[19,"Tubacione dhenje dhe thithje ajri prej shkume poliuretani te zgjeruar. me dendesi 48Kg/m3. (panel sandwich). e veshur me flete alumini  brenda/jashte 60  micron. bashke me aksesoret per prodhimin montimin dhe fiksimin e tyre ","m2",10,null,{"$f":"E925*D925","v":0}]
[null,"Polyurethane air ducts 48Kg/m3 density (sandwic panel) with aluminum foil 60 micron including installation and fixing accessories"]
[20,"Grile per thithjen e ajrit. 550x500 mm","cope",25,null,{"$f":"E927*D927","v":0}]
[null,"Air inlet grilles 500x400 mm"]
[21,"Grile per dhenien e ajrit. 700x200 mm","cope",25,null,{"$f":"E929*D929","v":0}]
[null,"Air supply grilles 500x400 mm"]
[22,"Pompe nxehtesie me kompresor inverter tip \"scroll\" me freon R410A per sisteme aplikimi VRV. me kontroll te temperatures se freonit ne dalje. me kapacitet termik ne ftohje 165 kW. kapacitet termik ne ngrohje 165 kW. i kondesuar me ajer.\n","cope",1,null,{"$f":"E931*D931","v":0}]
[null,"Scroll compressor heat pump. cooling capacity 165 kw/ heating capacity 165 kw.  R410 A refrigerant for VRV applications equiped with temperature sensor. including control pannel."]
[23,"Pajisje kanalore e fshehur mbi tavan te varur. me fuqi termike ne ftohje 4.5 kW. fuqi termike ne ngrohje 5.0 kW  me presion statik jo me pak se 80 Pa\n","cope",4,null,{"$f":"E933*D933","v":0}]
[null,"Celing ducted indoor unit. cooling capacity 4.5 kw heating capacity 5.0 kw min static pressure 80 Pa"]
[24,"Pajisje kanalore e fshehur mbi tavan te varur. me fuqi termike ne ftohje 5.5 kW. fuqi termike ne ngrohje 6.3 kW  me presion statik jo me pak se 80 Pa\n","cope",21,null,{"$f":"E935*D935","v":0}]
[null,"Celing ducted indoor unit. cooling capacity 5.5 kw heating capacity 6.3 kw min static pressure 80 Pa"]
[25,"Pajisje tavanore tip kasete. me fuqi termike ne ftohje 3.5 kW. fuqi termike ne ngrohje 4.0 kW  me presion statik jo me pak se 80 Pa\n","cope",1,null,{"$f":"E937*D937","v":0}]
[null,"Cassette indoor unit. cooling capacity 3.5 kw heating capacity 4.0 kw min static pressure 80 Pa"]
[26,"Pajisje tavanore tip kasete. me fuqi termike ne ftohje 4.5 kW. fuqi termike ne ngrohje 5.0 kW  me presion statik jo me pak se 80 Pa\n","cope",6,null,{"$f":"E939*D939","v":0}]
[null,"Cassette indoor unit. cooling capacity 4.5 kw heating capacity 5.0 kw min static pressure 80 Pa"]
[27,"Pajisje tavanore tip kasete. me fuqi termike ne ftohje 5.5 kW. fuqi termike ne ngrohje 6.3 kW  me presion statik jo me pak se 80 Pa\n","cope",2,null,{"$f":"E941*D941","v":0}]
[null,"Cassette indoor unit. cooling capacity 5.5 kw heating capacity 6.3 kw min static pressure 80 Pa"]
[28,"Komanda murale me funksion te termostatit. programatorit ditor dhe javor. me kontroll dhe diagnostikim individual te çdo Pajisje te brendshme VRV. Lidhja me kabell 2x1.0 mm\n","cope",34,null,{"$f":"E943*D943","v":0}]
[null,"Wall thermostat. weekly and daily schedule option. error reading display for VRV indoor units. Connection cable 2x1.0 mm"]
[null,"shuma  2.d","leke",null,null,{"$f":"SUM(F889:F944)","v":0}]
[null,"Sum  "]
[null,"2.e Kati Dyte"]
[null,"2.e Second floor"]
[1,"Deviatore bakri per 2 tuba","cope",6,null,{"$f":"E949*D949","v":0}]
[null,"Refnet branch 2 pipe type"]
[2,"Set degezim per tuba bakri","cope",7,null,{"$f":"E951*D951","v":0}]
[null,"Refnet branch piping kit"]
[3,"Tubacione bakri te termoizoluara paraparakisht. veshje antikondense. permase Ø 1/4'' (6.4mm) te pershtatshme per freon R410A","ml",75,null,{"$f":"E953*D953","v":0}]
[null,"Insulated cooper pipes with anti condense layer according to pipe dia. Ø 1/4'' (6.4mm) for R 410"]
[4,"Tubacione bakri te termoizoluara paraparakisht. veshje antikondense. permase Ø 3/8'' (9.5mm) te pershtatshme per freon R410A","ml",50,null,{"$f":"E955*D955","v":0}]
[null,"Insulated cooper pipes with anti condense layer according to pipe dia. Ø 3/8'' (9.5mm) for R 410"]
[5,"Tubacione bakri te termoizoluara paraparakisht. veshje antikondense. permase Ø 1/2'' (12.7 mm) te pershtatshme per freon R410A","ml",65,null,{"$f":"E957*D957","v":0}]
[null,"Insulated cooper pipes with anti condense layer according to pipe dia. Ø 1/2'' (12.7 mm) for R 410"]
[6,"Tubacione bakri te termoizoluara paraparakisht. veshje antikondense. permase Ø 5/8'' (15.9 mm) te pershtatshme per freon R410A","ml",71,null,{"$f":"E959*D959","v":0}]
[null,"Insulated cooper pipes with anti condense layer according to pipe dia. Ø 5/8'' (15.9 mm) for R 410"]
[7,"Tubacione bakri te termoizoluara paraparakisht. veshje antikondense. permase Ø 3/4''  ( 19.06 ) te pershtatshme per freon R410A","ml",59,null,{"$f":"E961*D961","v":0}]
[null,"Insulated cooper pipes with anti condense layer according to pipe dia. Ø 3/4'' (19.06 mm) for R 410"]
[8,"Tubacione bakri te drejta. permase Ø 7/8'' (22.2 mm) te pershtatshme per freon R410A","ml",47,null,{"$f":"E963*D963","v":0}]
[null,"Insulated rigid cooper pipes with anti condense layer according to pipe dia. Ø 7/8'' (22.2 mm) for R 410"]
[9,"Tubacione bakri te drejta. permase Ø 1'' (28.6 mm) te pershtatshme per freon R410A","ml",51,null,{"$f":"E965*D965","v":0}]
[null,"Insulated rigid cooper pipes with anti condense layer according to pipe dia. Ø 1'' (28.6 mm) for R 410"]
[10,"Tubacione bakri te drejta. permase Ø 1\"1/4 34 mm) te pershtatshme per freon R410A","ml",11,null,{"$f":"E967*D967","v":0}]
[null,"Insulated rigid cooper pipes with anti condense layer according to pipe dia. Ø 1''1/4 (34 mm) for R 410"]
[11,"Tubacione bakri te drejta. permase Ø 1\"1/2 (42 mm) te pershtatshme per freon R410A","ml",7,null,{"$f":"E969*D969","v":0}]
[null,"Insulated rigid cooper pipes with anti condense layer according to pipe dia. Ø 1''1/2 (42 mm) for R 410"]
[12,"Rakorderi bakri diam. te ndryshem","tot.",1,null,{"$f":"E971*D971","v":0}]
[null,"Copper pipe fittings "]
[13,"Termoizolim gome me qeliza te mbyllura DN 7/8\"-1\"1/4","ml",105,null,{"$f":"E973*D973","v":0}]
[null,"Rubber thermal insulation DN 7/8\"-1\"1/4"]
[14,"Tubacione kondensati dhe rakorderi","ml",121,null,{"$f":"E975*D975","v":0}]
[null,"Condense PP pipes for air conditioning system including fittings"]
[15,"Aksesore te ndryshem saldimi si azot. oksigjen. acetilen","tot.",1,null,{"$f":"E977*D977","v":0}]
[null,"Weldding materials nitogen.oxygen. acetylene"]
[16,"Stafazh dhe suporte per fiksimin  e tubave dhe Pajisjeve","tot.",1,null,{"$f":"E979*D979","v":0}]
[null,"Piping supports and accessories "]
[17,"Kabell elektrik 2x1.0 mm per instalimin e sistemit VRV","ml",98,null,{"$f":"E981*D981","v":0}]
[null,"Electric cable 2x1.0 mm for VRV system"]
[18,"Gaz frigoriferik R410A","kg",5,null,{"$f":"E983*D983","v":0}]
[null,"Refrigerant R410 A"]
[19,"Tubacione dhenje dhe thithje ajri prej shkume poliuretani te zgjeruar. me dendesi 48Kg/m3. (panel sandwich). e veshur me flete alumini  brenda/jashte 60  micron. bashke me aksesoret per prodhimin montimin dhe fiksimin e tyre ","m2",10,null,{"$f":"E985*D985","v":0}]
[null,"Polyurethane air ducts 48Kg/m3 density (sandwic panel) with aluminum foil 60 micron including installation and fixing accessories"]
[20,"Grile per thithjen e ajrit. 550x500 mm","cope",22,null,{"$f":"E987*D987","v":0}]
[null,"Air inlet grilles 500x400 mm"]
[21,"Grile per dhenien e ajrit. 700x200 mm","cope",22,null,{"$f":"E989*D989","v":0}]
[null,"Air supply grilles 500x400 mm"]
[22,"Pompe nxehtesie me kompresor inverter tip \"scroll\" me freon R410A per sisteme aplikimi VRV. me kontroll te temperatures se freonit ne dalje. me kapacitet termik ne ftohje 140 kW. kapacitet termik ne ngrohje 140kW. i kondesuar me ajer.\n","cope",1,null,{"$f":"E991*D991","v":0}]
[null,"Scroll compressor heat pump. cooling capacity 140 kw/ heating capacity 140 kw.  R410 A refrigerant for VRV applications equiped with temperature sensor. including control pannel."]
[23,"Pajisje kanalore e fshehur mbi tavan te varur. me fuqi termike ne ftohje 3.5 kW. fuqi termike ne ngrohje 4.0 kW me presion statik jo me pak se 80 Pa\n","cope",1,null,{"$f":"E993*D993","v":0}]
[null,"Celing ducted indoor unit. cooling capacity 3.5 kw heating capacity 4.0 kw min static pressure 80 Pa"]
[24,"Pajisje kanalore e fshehur mbi tavan te varur. me fuqi termike ne ftohje 4.5 kW. fuqi termike ne ngrohje 5.0 kW  me presion statik jo me pak se 80 Pa\n","cope",4,null,{"$f":"E995*D995","v":0}]
[null,"Celing ducted indoor unit. cooling capacity 4.5 kw heating capacity 5.0 kw min static pressure 80 Pa"]
[25,"Pajisje kanalore e fshehur mbi tavan te varur. me fuqi termike ne ftohje 5.5 kW. fuqi termike ne ngrohje 6.3 kW  me presion statik jo me pak se 80 Pa\n","cope",17,null,{"$f":"E997*D997","v":0}]
[null,"Celing ducted indoor unit. cooling capacity 5.5 kw heating capacity 6.3 kw min static pressure 80 Pa"]
[26,"Pajisje tavanore tip kasete. me fuqi termike ne ftohje 2.2 kW. fuqi termike ne ngrohje 2.7 kW  me presion statik jo me pak se 80 Pa\n","cope",2,null,{"$f":"E999*D999","v":0}]
[null,"Cassette indoor unit. cooling capacity 2.2 kw heating capacity 2.7 kw min static pressure 80 Pa"]
[27,"Pajisje tavanore tip kasete. me fuqi termike ne ftohje 2.7 kW. fuqi termike ne ngrohje 3.2 kW  me presion statik jo me pak se 80 Pa\n","cope",2,null,{"$f":"E1001*D1001","v":0}]
[null,"Cassette indoor unit. cooling capacity 2.7 kw heating capacity 3.2 kw min static pressure 80 Pa"]
[28,"Pajisje tavanore tip kasete. me fuqi termike ne ftohje 4.5 kW. fuqi termike ne ngrohje 5.0 kW  me presion statik jo me pak se 80 Pa\n","cope",6,null,{"$f":"E1003*D1003","v":0}]
[null,"Cassette indoor unit. cooling capacity 4.5 kw heating capacity 5.0 kw min static pressure 80 Pa"]
[29,"Komanda murale me funksion te termostatit. programatorit ditor dhe javor. me kontroll dhe diagnostikim individual te çdo Pajisje te brendshme VRV. Lidhja me kabell 2x1.0 mm\n","cope",32,null,{"$f":"E1005*D1005","v":0}]
[null,"Wall thermostat. weekly and daily schedule option. error reading display for VRV indoor units. Connection cable 2x1.0 mm"]
[null,"shuma  2.e","leke",null,null,{"$f":"SUM(F949:F1006)","v":0}]
[null,"Sum  "]
[null,"2.f Kati Trete"]
[null,"2.f Third floor"]
[1,"Deviatore bakri per 2 tuba","cope",6,null,{"$f":"E1011*D1011","v":0}]
[null,"Refnet branch 2 pipe type"]
[2,"Set degezim per tuba bakri","cope",5,null,{"$f":"E1013*D1013","v":0}]
[null,"Refnet branch piping kit"]
[3,"Tubacione bakri te termoizoluara paraparakisht. veshje antikondense. permase Ø 1/4'' (6.4mm) te pershtatshme per freon R410A","ml",60,null,{"$f":"E1015*D1015","v":0}]
[null,"Insulated cooper pipes with anti condense layer according to pipe dia. Ø 1/4'' (6.4mm) for R 410"]
[4,"Tubacione bakri te termoizoluara paraparakisht. veshje antikondense. permase Ø 3/8'' (9.5mm) te pershtatshme per freon R410A","ml",45,null,{"$f":"E1017*D1017","v":0}]
[null,"Insulated cooper pipes with anti condense layer according to pipe dia. Ø 3/8'' (9.5mm) for R 410"]
[5,"Tubacione bakri te termoizoluara paraparakisht. veshje antikondense. permase Ø 1/2'' (12.7 mm) te pershtatshme per freon R410A","ml",59,null,{"$f":"E1019*D1019","v":0}]
[null,"Insulated cooper pipes with anti condense layer according to pipe dia. Ø 1/2'' (12.7 mm) for R 410"]
[6,"Tubacione bakri te termoizoluara paraparakisht. veshje antikondense. permase Ø 5/8'' (15.9 mm) te pershtatshme per freon R410A","ml",61,null,{"$f":"E1021*D1021","v":0}]
[null,"Insulated cooper pipes with anti condense layer according to pipe dia. Ø 5/8'' (15.9 mm) for R 410"]
[7,"Tubacione bakri te termoizoluara paraparakisht. veshje antikondense. permase Ø 3/4''  ( 19.06 ) te pershtatshme per freon R410A","ml",47,null,{"$f":"E1023*D1023","v":0}]
[null,"Insulated cooper pipes with anti condense layer according to pipe dia. Ø 3/4'' (19.06 mm) for R 410"]
[8,"Tubacione bakri te drejta. permase Ø 7/8'' (22.2 mm) te pershtatshme per freon R410A","ml",21,null,{"$f":"E1025*D1025","v":0}]
[null,"Insulated rigid cooper pipes with anti condense layer according to pipe dia. Ø 7/8'' (22.2 mm) for R 410"]
[9,"Tubacione bakri te drejta. permase Ø 1'' (28.6 mm) te pershtatshme per freon R410A","ml",31,null,{"$f":"E1027*D1027","v":0}]
[null,"Insulated rigid cooper pipes with anti condense layer according to pipe dia. Ø 1'' (28.6 mm) for R 410"]
[10,"Tubacione bakri te drejta. permase Ø 1\"1/4 34 mm) te pershtatshme per freon R410A","ml",10,null,{"$f":"E1029*D1029","v":0}]
[null,"Insulated rigid cooper pipes with anti condense layer according to pipe dia. Ø 1''1/4 (34 mm) for R 410"]
[11,"Tubacione bakri te drejta. permase Ø 1\"1/2 (42 mm) te pershtatshme per freon R410A","ml",5,null,{"$f":"E1031*D1031","v":0}]
[null,"Insulated rigid cooper pipes with anti condense layer according to pipe dia. Ø 1''1/2 (42 mm) for R 410"]
[12,"Rakorderi bakri diam. te ndryshem","tot.",1,null,{"$f":"E1033*D1033","v":0}]
[null,"Copper pipe fittings "]
[13,"Termoizolim gome me qeliza te mbyllura DN 7/8\"-1\"1/4","ml",57,null,{"$f":"E1035*D1035","v":0}]
[null,"Rubber thermal insulation DN 7/8\"-1\"1/4"]
[14,"Tubacione kondensati dhe rakorderi","ml",117,null,{"$f":"E1037*D1037","v":0}]
[null,"Condense PP pipes for air conditioning system including fittings"]
[15,"Aksesore te ndryshem saldimi si azot. oksigjen. acetilen","tot.",1,null,{"$f":"E1039*D1039","v":0}]
[null,"Weldding materials nitogen.oxygen. acetylene"]
[16,"Stafazh dhe suporte per fiksimin  e tubave dhe Pajisjeve","tot.",1,null,{"$f":"E1041*D1041","v":0}]
[null,"Piping supports and accessories "]
[17,"Kabell elektrik 2x1.0 mm per instalimin e sistemit VRV","ml",79,null,{"$f":"E1043*D1043","v":0}]
[null,"Electric cable 2x1.0 mm for VRV system"]
[18,"Gaz frigoriferik R410A","kg",1,null,{"$f":"E1045*D1045","v":0}]
[null,"Refrigerant R410 A"]
[19,"Tubacione dhenje dhe thithje ajri prej shkume poliuretani te zgjeruar. me dendesi 48Kg/m3. (panel sandwich). e veshur me flete alumini  brenda/jashte 60  micron. bashke me aksesoret per prodhimin montimin dhe fiksimin e tyre ","m2",10,null,{"$f":"E1047*D1047","v":0}]
[null,"Polyurethane air ducts 48Kg/m3 density (sandwic panel) with aluminum foil 60 micron including installation and fixing accessories"]
[20,"Grile per thithjen e ajrit. 550x500 mm","cope",17,null,{"$f":"E1049*D1049","v":0}]
[null,"Air inlet grilles 500x400 mm"]
[21,"Grile per dhenien e ajrit. 700x200 mm","cope",17,null,{"$f":"E1051*D1051","v":0}]
[null,"Air supply grilles 500x400 mm"]
[22,"Pompe nxehtesie me kompresor inverter tip \"scroll\" me freon R410A per sisteme aplikimi VRV. me kontroll te temperatures se freonit ne dalje. me kapacitet termik ne ftohje 120 kW. kapacitet termik ne ngrohje 120kW. i kondesuar me ajer.\n","cope",1,null,{"$f":"E1053*D1053","v":0}]
[null,"Scroll compressor heat pump. cooling capacity 140 kw/ heating capacity 140 kw.  R410 A refrigerant for VRV applications equiped with temperature sensor. including control pannel."]
[23,"Pajisje kanalore e fshehur mbi tavan te varur. me fuqi termike ne ftohje 3.5 kW. fuqi termike ne ngrohje 4.0 kW me presion statik jo me pak se 80 Pa\n","cope",1,null,{"$f":"E1055*D1055","v":0}]
[null,"Celing ducted indoor unit. cooling capacity 3.5 kw heating capacity 4.0 kw min static pressure 80 Pa"]
[24,"Pajisje kanalore e fshehur mbi tavan te varur. me fuqi termike ne ftohje 4.5 kW. fuqi termike ne ngrohje 5.0 kW  me presion statik jo me pak se 80 Pa\n","cope",4,null,{"$f":"E1057*D1057","v":0}]
[null,"Celing ducted indoor unit. cooling capacity 4.5 kw heating capacity 5.0 kw min static pressure 80 Pa"]
[25,"Pajisje kanalore e fshehur mbi tavan te varur. me fuqi termike ne ftohje 5.5 kW. fuqi termike ne ngrohje 6.3 kW  me presion statik jo me pak se 80 Pa\n","cope",17,null,{"$f":"E1059*D1059","v":0}]
[null,"Celing ducted indoor unit. cooling capacity 5.5 kw heating capacity 6.3 kw min static pressure 80 Pa"]
[26,"Pajisje tavanore tip kasete. me fuqi termike ne ftohje 2.2 kW. fuqi termike ne ngrohje 2.7 kW  me presion statik jo me pak se 80 Pa\n","cope",2,null,{"$f":"E1061*D1061","v":0}]
[null,"Cassette indoor unit. cooling capacity 2.2 kw heating capacity 2.7 kw min static pressure 80 Pa"]
[27,"Pajisje tavanore tip kasete. me fuqi termike ne ftohje 2.7 kW. fuqi termike ne ngrohje 3.2 kW  me presion statik jo me pak se 80 Pa\n","cope",2,null,{"$f":"E1063*D1063","v":0}]
[null,"Cassette indoor unit. cooling capacity 2.7 kw heating capacity 3.2 kw min static pressure 80 Pa"]
[28,"Pajisje tavanore tip kasete. me fuqi termike ne ftohje 4.5 kW. fuqi termike ne ngrohje 5.0 kW  me presion statik jo me pak se 80 Pa\n","cope",6,null,{"$f":"E1065*D1065","v":0}]
[null,"Cassette indoor unit. cooling capacity 4.5 kw heating capacity 5.0 kw min static pressure 80 Pa"]
[29,"Komanda murale me funksion te termostatit. programatorit ditor dhe javor. me kontroll dhe diagnostikim individual te çdo Pajisje te brendshme VRV. Lidhja me kabell 2x1.0 mm\n","cope",32,null,{"$f":"E1067*D1067","v":0}]
[null,"Wall thermostat. weekly and daily schedule option. error reading display for VRV indoor units. Connection cable 2x1.0 mm"]
[null,"shuma  2.f","leke",null,null,{"$f":"SUM(F1011:F1067)","v":0}]
[null,"Sum  "]
[null,"Shuma 2 (a+b+c+d+e+f)","leke",null,null,{"$f":"F785+F825+F885+F945+F1007+F1069","v":0}]
[null,"Sum  "]
[]
[null,"3. Mbrojtja nga zjarri"]
[null,"3. Fire protection"]
[1,"FV tub te zeze dhe rakorderi Ø 2 \" ","kg ",215,null,{"$f":"D1076*E1076","v":0}]
[null,"SI black pipe and fitting Ø 2 \""]
[2,"FV tub te zeze dhe rakorderi Ø 2 1/2 \" ","kg ",255,null,{"$f":"D1078*E1078","v":0}]
[null,"SI black pipe and fitting Ø 2 1/2 \""]
[3,"FV tub te zeze dhe rakorderi Ø 3 \" ","kg ",152,null,{"$f":"D1080*E1080","v":0}]
[null,"SI black pipe and fitting Ø 3 \""]
[6,"Pompe e mbrojtjes kunder zjarrit\n - Fuqia e instaluar (2x2) kW, In =2x2.5A, 3F- 400V-50Hz \n - Prurja ( 2.4) m³ / h, Prevalenca 35 mkH2O\n - Presioni punes 6 bar,  presioni max  16 bar  \nAksesoret: \n· Kolektori i dergimit 2½\", me fllanxha PN 16\n· Kolektori i thithjes 2½\", me fllanxha PN 16\n· Valvol nderprerese me farfalle, gize, PN16, DN 65  \n· Valvol moskthimi, me kllape, fllanxhe PN16, DN 65\n· Xhunto elastike DN 65\n· Suporte antivibrues \n· Manometer \n· Manovutometer Presotat per çdo pompe \n· Serbator me mebrane 20 lit , PN 10 \n· Kuader komande e kontrolli per çdo pompe \n· Gjenerator autoelektronik","cope",1,null,{"$f":"E1082*D1082","v":0}]
[null,"SI  Fire protection pump\n  - Installed power (2x2.2) kW, In = 2x4.4 A, 3F- 400V-50Hz\n  - Flow (18) m³ / h, Prevalence 55 mkH2O\n  - Working pressure 6 bar, max pressure 16 bar\naccessories:\n· 2½ \"dispatch manifold, with flanges PN 16\n· 2½ \"suction manifold, with flanges PN 16\n· Stop valve with fins, cast iron, PN16, DN 65\n· Non-return valve, with brackets, flanges PN16, DN 65\n· Elastic joint DN 65\n· Anti-vibration support\n· Manometer\n· Pressure manometer for each pump\n· 20 liter membrane tank, PN 10\n· Control command frame for each pumppump"]
[7,"F.V Kaset + hidrant zjarri i brendshem. Kasete brenda murit, llamarine çeliku e emaluar me ngjyre te kuqe RAL 3000 - UNI 9227,me baze rezine. Dimensionet (370x610x190)mm, tub fleksibel 30 m,  Aksesoret: saraqineske nderprerese 1½\",  lançe + zorre uji  DN 45. Pjesa e perparme e mbyllur me çeles.","cope",16,null,{"$f":"E1084*D1084","v":0}]
[null,"SI Cassette + internal fire hydrant. Cassette inside the wall, red enameled steel sheet RAL 3000 - UNI 9227, with resin base. Dimensions (370x610x190) mm, flexible tube 30 m, Accessories: 1½ \"stop switch, chain + water hose DN 45. Front part closed with a key."]
[8,"FV Hidrant i jashtem nentoke, norma EN14384, DN70, norma EN 1982, tapa bronxi EN 1982, lidhje te filetuar PN16, e pajisjur me shkarkuesin automatik ne rast ngrirje, valvol ndarese nentoke si dhe pike lidhje per brigadat PMNZSH","cope",1,null,{"$f":"E1086*D1086","v":0}]
[null,"SI External hydrant underground, EN14384 norm, DN70, EN 1982 norm, Corks Bronze EN 1982, PN16 threaded connection, provided with an automatic discharger in the case freeze, dividing underground valve and connection point for brigades PMNZSH"]
[9,"FV Grup saraçineske me 1 gryke lidhje hidranti 2 1/2\" për brigadat MNZ","cope",1,null,{"$f":"E1088*D1088","v":0}]
[null,"SI Valves group with 1 hydrants gorge about 2 1/2 \"brigades MNZ"]
[10,"FV Fikse zjarri portabel me pluhur, 6kg, tipi 34A 233BC","cope",25,null,{"$f":"E1090*D1090","v":0}]
[null,"Fire-Portable fire extinguisher with powder, 6kg, type 34A 233BC"]
[11,"FV Fikse zjarri portabel me CO2, 5kg, tipi 113B, per ambjentin e kabines  elektrike ose pajisje elektrike ","cope",4,null,{"$f":"E1092*D1092","v":0}]
[null,"SI Portable fire extinguisher with CO2, 5kg, type 113B, for the environment of the electric cabin or electrical equipment"]
[null,"shuma  3","leke",null,null,{"$f":"SUM(F1075:F1093)","v":0}]
[null,"Sum  "]
[]
[null,"4. Dhoma teknike"]
[null,"4. Technical room"]
[1,"F.V Tub celiku zingato  dhe rakorderi Ø 11/4 (dn 40) ","kg ",54,null,{"$f":"D1099*E1099","v":0}]
[null,"SI Galvanized steel pipe and fittings Ø 11/4 (dn 40)"]
[2,"F.V Tub celiku zingato  dhe rakorderi Ø 2\" (dn 50 ) ","kg ",120,null,{"$f":"D1101*E1101","v":0}]
[null,"SI Galvanized steel pipe and fittings Ø 2\" (dn 50 ) "]
[3,"F.V Tub celiku zingato  dhe rakorderi Ø 21/2 (dn 65 ) ","kg ",85,null,{"$f":"D1103*E1103","v":0}]
[null,"SI Galvanized steel pipe and fittings Ø 21/2 (dn 65 )"]
[4,"F.V Elektroda saldimi per tub celiku ","kg ",6,null,{"$f":"D1105*E1105","v":0}]
[null,"SI Welding electrodes for steel pipe"]
[5,"F.V Termoizolim tubi Ø 2 1/2\" me armafleks (d64x20) ","ml ",35,null,{"$f":"D1107*E1107","v":0}]
[null,"SI Thermal insulation pipe Ø 2 1/2 \"with armaflex (d64x20)"]
[6,"F.V Termoizolim tubi Ø 2\" me armafleks (d54x13) ","ml ",45,null,{"$f":"D1109*E1109","v":0}]
[null,"SI Thermal insulation pipe Ø 2 \"with armaflex (d54x13)"]
[7,"F.V Termoizolim tubi Ø11/4\" me armafleks (d32x13) ","ml ",25,null,{"$f":"D1111*E1111","v":0}]
[null,"SI Thermal insulation pipe Ø11 / 4 \"with armaflex (d32x13)"]
[8,"F.V Valvol nderprerese DN 32(Ø11/4\")  ","cope ",2,null,{"$f":"D1113*E1113","v":0}]
[null,"SI Shut-off valve DN 32 (Ø11 / 4 \")"]
[9,"F.V. Valvol moskthimi DN32PN 6-10bar (Ø 114\" ) ","cope ",1,null,{"$f":"D1115*E1115","v":0}]
[null,"SI Non-return valve DN32PN 6-10bar (Ø 114 \")"]
[10,"F.V Valvol nderprerese DN 50 (Ø2\")  ","cope ",2,null,{"$f":"D1117*E1117","v":0}]
[null,"SI Shut-off valve DN 50 (Ø2 \")"]
[11,"F.V. Valvol moskthimi DN50 PN 6-10bar (Ø2\") ","cope ",1,null,{"$f":"D1119*E1119","v":0}]
[null,"SI Non-return valve DN50 PN 6-10bar (Ø2 \")"]
[12,"F.V Xhunto antivibruese DN32(Ø 2\" )","cope ",1,null,{"$f":"D1121*E1121","v":0}]
[null,"SI Anti-vibration joint DN32 (Ø 2 \")"]
[13,"F.V Xhunto antivibruese DN50 (Ø 2\" )","cope ",1,null,{"$f":"D1123*E1123","v":0}]
[null,"SI Anti-vibration joint DN50 (Ø 2 \")"]
[14,"F.V Valvol nderprerese DN 65 (Ø2\"1/2)  ","cope ",2,null,{"$f":"D1125*E1125","v":0}]
[null,"SIShut-off valve DN 65 (Ø2 \"1/2)"]
[15,"F.V. Valvol moskthimi DN65 PN 6-10bar  (Ø 2½\" ) ","cope ",2,null,{"$f":"D1127*E1127","v":0}]
[null,"SI Non-return valve DN65 PN 6-10bar (Ø 2½ \")"]
[16,"F.V. Manometer analog ","cope ",1,null,{"$f":"D1129*E1129","v":0}]
[null,"SI analog manometer"]
[17,"F.V. Termometer analog ","cope ",1,null,{"$f":"D1131*E1131","v":0}]
[null,"SI analog termometer"]
[18,"F.V Xhunto antivibruese DN65 (Ø 2½\" ) me fllanxha ","cope ",4,null,{"$f":"D1133*E1133","v":0}]
[null,"SI Anti-vibration joint DN65 (Ø 2½ \") with flanges"]
[19,"F.V. Valvol moskthimi DN65 PN 6-10bar  (Ø 2½\" ) ","cope ",2,null,{"$f":"D1135*E1135","v":0}]
[null,"SI Non-return valve DN65 PN 6-10bar (Ø 2½ \")"]
[20,"F.V Galexhant mekanik DN50 (Ø 2\" ) ","cope ",6,null,{"$f":"D1137*E1137","v":0}]
[null,"SI Mechani float switch DN50 (Ø 2 \")"]
[21,"F.V. Galexhand elektrik  per H/Z ","cope ",1,null,{"$f":"D1139*E1139","v":0}]
[null,"SI electric float switch H/F"]
[22,"F.V. Xhunto dilatacioni PN 16 DN 50-65 (Ø2-21/2 \" ) ","cope ",8,null,{"$f":"D1141*E1141","v":0}]
[null,"SI Dilation joint PN 16 DN 50-65 (Ø2-21 / 2 \")"]
[23,"F.V. Elemente plotsues per instalimet e linjave hidraulike (Niple, Manikota, Hollandez, Fije lini, Paste, Loctide leng, etj) ","kg ",48,null,{"$f":"D1143*E1143","v":0}]
[null,"SI Complementary elements for hydraulic line installations (Niple, Manikota, Dutch, Linen, Paste, Loctide fluid, etc.)"]
[24,"F.V Zbutes Uji Karakteristikat teknike Prurja max  7.0 m³/h   Kripe   52.4 kg     Cikli  2100m³ x° f    Lidhjet 11/4  Kapaciteti I dozes se kripes 520 litra I kompletuar me sistem kontrolli rigjenerativ  , Presionimin/max 3/10 bar , Kapaciteti 100 lt , De = 450 mm,  H= 1005 mm, Lidhjet FØ 11/4\" ","cope",1,null,{"$f":"D1145*E1145","v":0}]
[null,"SI. Water softener Technical characteristics Flow max 7.0 m³ / h Salt 52.4 kg Cycle 2100 m³ x ° f Links 11/4 Salt dose capacity 520 liters Complete with regenerative control system, Pressure / max 3/10 bar, Capacity 100 lt, De = 450 mm, H = 1005 mm, Connections FØ 11/4 \""]
[25,"F.V Ene zgjerimi me diafragme per rrjetin e furnizimit me uje te ftohte  Volumi 100 lit \nDiametri 450 mm\nLartesia 1030  mm\nP.max  8 bar\nLidhja  ∅11/4\"","cope",1,null,{"$f":"D1147*E1147","v":0}]
[null,"SI. Diaphragm expansion vessel for cold water supply network Volume 100 lit.\nDiameter 450 mm\nHeight 1030 mm\nP.max 8 bar\nConnection ∅11 / 4 \""]
[26,"F.V Pompa e sitemit te ujit sanitar   me karakteristika teknike per Objekti  Fuqia e instaluar  3 kw . Intensiteti i rymes  (3.5) A   Lidhjet 11/2 PN 16, Tensioni i dhene 3F 400V, 50Hz Prurja .3 m³/ore . Prevalenca 80  m KH2O  me ene zgjerimi 100 litra ","cope",1,null,{"$f":"D1149*E1149","v":0}]
[null,"SI. Sanitary water system pump with technical characteristics for the Building Installed power 3 kw. Current intensity (3.5) A Connections 11/2 PN 16, Voltage given 3F 400V, 50Hz Flow .3 m / h. Prevalence 80 m KH2O with expansion tank 100 liters"]
[27,"F.V  Elektropompe  per qarkullimin e ujit te ngrohte Q=2.5 liter/sek  m³/ore  H=6.5 m . ","cope",1,null,{"$f":"D1151*E1151","v":0}]
[null,"SI. Electric pumps for hot water circulation Q = 2.5 liters / sec m / h H = 6.5 m."]
[28,"F.V Elektropompe per qarkullimin nga panelet ne akumultor   Q=2m³/ore H= 5 m. ","cope",1,null,{"$f":"D1153*E1153","v":0}]
[null,"SI. Electric pumps for circulation from the panels to the accumulator Q = 2m³ / hour H = 5 m."]
[29,"F.V Pasqyra diellore S= 1x2m² (me te gjitha  aseksoret e mundeshme) ","cope ",15,null,{"$f":"D1155*E1155","v":0}]
[null,"SI. Solar mirror S = 1x2m² (with all possible axes)"]
[30,"F.V Akumulator I ujit te ngrohte vertikale capaciteti V = 500 litra  Dimensione 650 x1800 mm presioni i punes 6 bar Lidhjet Ø 11/4\"","cope ",3,null,{"$f":"D1157*E1157","v":0}]
[null,"SI. Vertical hot water accumulator capacity V = 500 liters Dimensions 650 x1800 mm working pressure 6 bar Connections Ø 11/4 \""]
[null,"Shuma 4","leke",null,null,{"$f":"SUM(F1097:F1157)","v":0}]
[null,"Sum  "]
[]
[null,"Shuma  B ( 1+2+3+4)","leke",null,null,{"$f":"F745+F1071+F1094+F1159","v":0}]
[null,"Sum  B (1+2+3+4)"]
[".."]
[null,"C .  INSTALIMET E ELEKTRIKE, INTERNET DHE TELEFONI, SINJALIZIM"]
[null,"ELECTRICAL INSTALLATION"]
[null,"1. Rrugekalimet"]
[null,"1. Line installation"]
[1,"F.V. Kanaline e birezuar Zn 200x75 ","ml",830,null,{"$f":"D1169*E1169","v":0}]
[null,"SI Galvanised electrical trunking Zn 200x75"]
[2,"F.V. Kanaline e birezuar Zn 100x75 ","ml",790,null,{"$f":"D1171*E1171","v":0}]
[null,"SI Galvanised electrical trunking Zn 100x75"]
[3,"FV. Aksesore per kanaline Zn 200x75 ( Kthesa, Kryqezime, Reduktore , Nderrim plani ,kapak aksesoresh etj sipas rastit)","cope",75,null,{"$f":"D1173*E1173","v":0}]
[null,"SI Galvanised trunking  200x75( bend, cross, reductor, covers, accessories etc.)"]
[4,"FV. Aksesore per kanaline Zn 100x75 ( Kthesa, Kryqezime, Reduktore , Nderrim plani ,kapak aksesoresh etj sipas rastit)","cope",75,null,{"$f":"D1175*E1175","v":0}]
[null,"SI Galvanised trunking  100x75 (bend, cross, reductor, covers, accessories etc.)"]
[5,"FV. Aksesore fiksimi me varje  (kompletuar me 2cp prizhonier te filetuar M8 , 0.4m profil Zn55x18 ,6cp dado m8 , 6 cp rondele M8 , 2cp upa metalike M8 )","cope",550,null,{"$f":"D1177*E1177","v":0}]
[null,"Insallation accessories ( 2 hangs M8 0.4 . Profile Zn 55x18, 6pcs metalic fixes"]
[6,"F.V. Tub fleksibel PVC,djegje pa flake dhe emetim gazi, Ø20mm me aksesore","ml",7600,null,{"$f":"D1179*E1179","v":0}]
[null,"SI PVC corrugate electrical pipe, urning without flame and smoke 20 mm+ accessies"]
[7,"F.V. Tub fleksibel PVC,djegje pa flake dhe emetim gazi, Ø25mm me aksesore","ml",3910,null,{"$f":"D1181*E1181","v":0}]
[null,"SI PVC corrugate electrical pipe, urning without flame and smoke 25 mm+ accessies"]
[8,"F.V. Tub fleksibel PVC,djegje pa flake dhe emetim gazi, Ø32mm me aksesore","ml",1485,null,{"$f":"D1183*E1183","v":0}]
[null,"SI PVC corrugate electrical pipe, urning without flame and smoke 32 mm+ accessies"]
[9,"F.V. Kuti shperndarese  C5 jashte  murit ","cope",250,null,{"$f":"D1185*E1185","v":0}]
[null,"SI Distribution electrical box Model C5 out of wall"]
[10,"F.V. Kuti shperndarese C3 jashte   murit ","cope",125,null,{"$f":"D1187*E1187","v":0}]
[null,"SI Distribution electrical box mModel C3 out of wall"]
[null,"shuma  1","leke",null,null,{"$f":"SUM(F1169:F1188)","v":0}]
[null,"Sum  "]
[]
[null,"2. Kabllot"]
[null,"2. Cable"]
[1,"F.V. Kabell 2x(3x185mm)+1x185m+1x185mm FG16M16","ml",55,null,{"$f":"D1194*E1194","v":0}]
[null,"SI Cable 2x(3x185mm)+1x185m+1x185mm FG16M16"]
[2,"F.V. Kabell 2x(3x120mm)+1x120m+1x120mm FG16M16","ml",110,null,{"$f":"D1196*E1196","v":0}]
[null,"SI Cable 2x(3x120mm)+1x120m+1x120mm FG16M16"]
[3,"F.V. Kabell 5x50mm FG16OM16","ml",120,null,{"$f":"D1198*E1198","v":0}]
[null,"SI Cable 5x50mm FG16M16"]
[4,"F.V. Kabell 5x25mm FG16OM16","ml",480,null,{"$f":"D1200*E1200","v":0}]
[null,"SI Cable 5x25mm FG16OM16"]
[5,"F.V. Kabell 5x2,5mm FTG10OM1","ml",120,null,{"$f":"D1202*E1202","v":0}]
[null,"SI Cable 5x2,5mm FTG10OM1"]
[6,"F.V. Kabell 5x16mm FG16OM16","ml",90,null,{"$f":"D1204*E1204","v":0}]
[null,"SI Cable 5x16mm FG16OM16"]
[7,"F.V. Kabell 5x10mm FG16OM16","ml",1100,null,{"$f":"D1206*E1206","v":0}]
[null,"SI Cable 5x10mm FG16OM16"]
[8,"F.V. Kabell 5x6mm FG16OM16","ml",440,null,{"$f":"D1208*E1208","v":0}]
[null,"SI Cable 5x6mm FG16OM16"]
[9,"F.V. Kabell 5x4mm FG16OM16","ml",380,null,{"$f":"D1210*E1210","v":0}]
[null,"SI Cable 5x4mm FG16OM16"]
[10,"F.V. Kabell 3x4mm FG16OM16","ml",300,null,{"$f":"D1212*E1212","v":0}]
[null,"SI Cable 3x4mm FG16OM16"]
[11,"F.V. Kabell 3x2.5mm FG16OM16","ml",5000,null,{"$f":"D1214*E1214","v":0}]
[null,"SI Cable 3x2.5mm FG16OM16"]
[12,"F.V. Kabell 3x1.5mm FG16OM16","ml",4500,null,{"$f":"D1216*E1216","v":0}]
[null,"SI Cable 3x1.5mm FG16OM16"]
[13,"F.V. Percjelles FG17 1x2.5","ml",12000,null,{"$f":"D1218*E1218","v":0}]
[null,"SI Copper conductor FG17 1x2.5"]
[14,"F.V. Percjelles FG17 1x1.5","ml",11000,null,{"$f":"D1220*E1220","v":0}]
[null,"SI Copper conductor FG17 1x1.5"]
[15,"F.V. Kabell 4x1.5 FG16OM16","ml",750,null,{"$f":"D1222*E1222","v":0}]
[null,"SI Cable 4x1.5 FG16OM16"]
[16,"F.V. Kabell 2x0.5+4x0.22 per sistemin antivjedhie","ml",600,null,{"$f":"D1224*E1224","v":0}]
[null,"SI Cable  2x0.5+4x0.22"]
[null,"shuma  2","leke",null,null,{"$f":"SUM(F1194:F1225)","v":0}]
[null,"Sum  "]
[]
[null,"3. Pajisjet"]
[null,"3. Equipments"]
[1,"F.V. Prize Shuko 2P+T 16A  2 module e bardhe","cope",414,null,{"$f":"D1231*E1231","v":0}]
[null,"SI Electrical Socket 2P+T 16A 2 module white"]
[2,"F.V. Prize Shuko 2P+T 16A  2 module e kuqe","cope",183,null,{"$f":"D1233*E1233","v":0}]
[null,"SI Electrical Socket 2P+T 16A 2 module red"]
[3,"F.V. Kuti per celesa e priza 3-module, suport , kapak & tapa per instalim brenda murit .","cope",373,null,{"$f":"D1235*E1235","v":0}]
[null,"SI Electrical box  for socket 3 module , suport, cover for installation inside wall"]
[4,"F.V. Kuti per celesa e priza 4-module, suport , kapak & tapa per instalim brenda murit .","cope",163,null,{"$f":"D1237*E1237","v":0}]
[null,"SI Electrical box  for socket 4 module , suport, cover for installation inside wall"]
[5,"F.V. Torrete ne dysheme 12M","cope",26,null,{"$f":"D1239*E1239","v":0}]
[null,"SI torrete on flor 12 m"]
[6,"F.V. Celes 1P","cope",95,null,{"$f":"D1241*E1241","v":0}]
[null,"SI Swich 1P"]
[7,"F.V. Pulsant per komandimin e ndricimit","cope",34,null,{"$f":"D1243*E1243","v":0}]
[null,"SI Swich light control"]
[8,"F.V. Sensor levizje 360⁰","cope",103,null,{"$f":"D1245*E1245","v":0}]
[null,"SI Motion sensor"]
[9,"F.V. Ndricues plafon","cope",159,null,{"$f":"D1247*E1247","v":0}]
[null,"SI Lighter"]
[10,"F.V. Ndricues emegjence ","cope",70,null,{"$f":"D1249*E1249","v":0}]
[null,"SI Emergency light"]
[11,"F.V. Ndricues LED 60x60 36W","cope",487,null,{"$f":"D1251*E1251","v":0}]
[null,"SI LED Light 60x60 36W"]
[12,"F.V. Ndricues hermetik","cope",89,null,{"$f":"D1253*E1253","v":0}]
[null,"SI Hermetic Light"]
[13,"F.V. Ndriues mural tip bracet","cope",20,null,{"$f":"D1255*E1255","v":0}]
[null,"SI Indor wall light"]
[14,"F.V. Zile elektrike","cope",16,null,{"$f":"D1257*E1257","v":0}]
[null,"SI Electrical bell"]
[15,"F.V. Buton","cope",3,null,{"$f":"D1259*E1259","v":0}]
[null,"SI Control switch"]
[16,"F.V. UPS 15kVA 3:3 (3-fazor) me autonomi 10min","cope",1,null,{"$f":"D1261*E1261","v":0}]
[null,"UPS 15kVA 3:3 (3-fazor) 10min autonomie"]
[null,"shuma  3","leke",null,null,{"$f":"SUM(F1231:F1262)","v":0}]
[null,"Sum  "]
[]
[null,"4. Rack Data Pajisje"]
[null,"4. Eqipments Rack data"]
[1,"F.V. Rack 19\" 42U ","cope",1,null,{"$f":"D1268*E1268","v":0}]
[null,"SI  Rack 19\" 42U "]
[2,"F.V. Rack 19\" 32U ","cope",2,null,{"$f":"D1270*E1270","v":0}]
[null,"SI  Rack 19\" 32U "]
[2,"F.V. Rack 19\" 15U ","cope",6,null,{"$f":"D1272*E1272","v":0}]
[null,"SI  Rack 19\" 15U "]
[3,"F.V. Patch panel  me 24 porta RJ-45, FTP cat 6","cope",12,null,{"$f":"D1274*E1274","v":0}]
[null,"SI  Patch panel  me 24 inlet RJ-45, FTP cat 6"]
[4,"F.V. Patch guide ","cope",12,null,{"$f":"D1276*E1276","v":0}]
[null,"SI Patch guide "]
[5,"F.V. Switch 48P 10/100Mbps 1U ","cope",12,null,{"$f":"D1278*E1278","v":0}]
[null,"SI Switch 48P 10/100Mbps 1U "]
[6,"F.V. Switch 24P POE","cope",2,null,{"$f":"D1280*E1280","v":0}]
[null,"SI Switch 24P POE"]
[7,"F.V. Patch corda  me FTP-cat-6 me dy koka konektoriale, L=1.5 m","cope",220,null,{"$f":"D1282*E1282","v":0}]
[null,"SI Patch corda  me FTP-cat-6 2 inlet  conectoriale, L=1.5 m"]
[8,"F.V. Panel 4 ventilator me termostat","cope",9,null,{"$f":"D1284*E1284","v":0}]
[null,"SI Panel 4 cooler "]
[9,"F.V. Suport 6 priza PDU 19\" 1HE 16A","cope",9,null,{"$f":"D1286*E1286","v":0}]
[null,"SI Suport 6 priza PDU 19\" 1HE 16A"]
[null,"shuma  4","leke",null,null,{"$f":"SUM(F1268:F1287)","v":0}]
[null,"Sum  "]
[]
[null,"5. Rrjeti  Kompjuterik & CCTV"]
[null,"5. Computer Network & CCTV"]
[1,"F.V. Kabell rrjeti kompjuterik, Tip FTP-cat6 ","ml",10500,null,{"$f":"D1293*E1293","v":0}]
[null,"SI Computer lan cable FTP-cat6"]
[2,"F.V. Priza rrjeti tip RJ-45, cat 6, FTP, Kompletuar me adaptor","cope",118,null,{"$f":"D1295*E1295","v":0}]
[null,"SI Lan Socket RJ-45, cat 6, FTP, adaptor included"]
[3,"F.V. Priza telefonie","cope",48,null,{"$f":"D1297*E1297","v":0}]
[null,"SI Telephon sockets"]
[4,"F.V. Kamera IP MiniBullet 5MP (6mm) IR(30m) IP66","cope",15,null,{"$f":"D1299*E1299","v":0}]
[null,"SI Camera IP MiniBullet 5MP (6mm) IR(30m) IP66"]
[5,"F.V. Kamera IP Dome 5MP (4mm) IR(30m) IP66","cope",19,null,{"$f":"D1301*E1301","v":0}]
[null,"SI Camera IP Dome 5MP (4mm) IR(30m) IP66"]
[6,"F.V. NVR me 16 kanale POE","cope",1,null,{"$f":"D1303*E1303","v":0}]
[null,"SI NVR  16 chanel POE"]
[null,"shuma  5","leke",null,null,{"$f":"SUM(F1293:F1304)","v":0}]
[null,"Sum  "]
[]
[null,"6. Sistemi i Detektimit te Zjarrit "]
[null,"6. Fire Detection System"]
[1,"F.V. Panel zjarri I adresueshem me 2 zona I zgjerueshem deri ne 4 (Perfshire dhe Konfigurim, StartUP)","set",1,null,{"$f":"D1310*E1310","v":0}]
[null,"SI Fire panel with 2 area to 4 area (start up and Programing)"]
[2,"F.V. Detektor optik Tymi I adresueshem","cope",262,null,{"$f":"D1312*E1312","v":0}]
[null,"SI Adressed smoke detector"]
[3,"F.V. Baze normale e pajisur me izolatore ","cope",131,null,{"$f":"D1314*E1314","v":0}]
[null,"SI Normal patform isolation inc."]
[4,"F.V. Baze per detektorin me dalje per lidhjen e fleshuesit me izolatore","cope",131,null,{"$f":"D1316*E1316","v":0}]
[null,"SI Detector Platform inlet of flash light, isolation inc"]
[5,"F.V Fleshues LED per sensoret mbi tavan gipsi","cope",131,null,{"$f":"D1318*E1318","v":0}]
[null,"SI Led flash light for sensors "]
[6,"F.V. Buton per thirrje manuale konvencional I risetueshem dhe I pajisur me izolator","cope",13,null,{"$f":"D1320*E1320","v":0}]
[null,"SI Manual alert switch"]
[7,"F.V. Bateri 12V 12Ah","cope",2,null,{"$f":"D1322*E1322","v":0}]
[null,"SI Batery 12V 12Ah"]
[8,"F.V. Sirene e jashtme optike-akustike","cope",2,null,{"$f":"D1324*E1324","v":0}]
[null,"SI Outdoor Siren"]
[9,"F.V. Bateri 12V 2,4Ah per sirenen e jashtme","cope",2,null,{"$f":"D1326*E1326","v":0}]
[null,"SI Batery 12V 12Ah for outdoor siren"]
[10,"F.V Sirene e brendshme optike-akustike","cope",13,null,{"$f":"D1328*E1328","v":0}]
[null,"SI Indoor siren"]
[11,"F.V. Kabell zjarri G4, S=2x1 mm²","ml",4500,null,{"$f":"D1330*E1330","v":0}]
[null,"SI Fire cable G4, S=2x1 mm²"]
[12,"F.V. Kontakt magnetik me force mbajtese deri ne 50kg","cope",9,null,{"$f":"D1332*E1332","v":0}]
[null,"SI Magnetic contact strenght 50 kg"]
[13,"F.V. Ushqyes shtese per 24VCC 4A per ushqimin e sirenave dhe kontakteve magnetike","cope",4,null,{"$f":"D1334*E1334","v":0}]
[null,"SI 24VCC 4A feeder for siren and magnetic contact"]
[14,"F.V. Modul 4IN/4OUT per komandimin e kontakteve magnetike etj","cope",4,null,{"$f":"D1336*E1336","v":0}]
[null,"SI Module 4IN/4OUT for magnetc contacts controle"]
[null,"shuma  6","leke",null,null,{"$f":"SUM(F1310:F1337)","v":0}]
[null,"Sum  "]
[]
[null,"7. Sistemi i Antivjedhies"]
[null,"7. Anti-Theft System"]
[1,"F.V. Central me deri ne 21 inpute me minmumi 4 zona, me 5 Inpute te aksesueshme direkt ne motherboard  (Perfshire dhe Konfigurim, StartUP)","set",1,null,{"$f":"D1343*E1343","v":0}]
[null,"SI MainCentral to 21 inpute , min 4 zones, 5 inputes to motherboard (programming and start up"]
[2,"F.V. Detektor levizje me dopio teknologji Infrared+Microwave (Petimunity)","cope",41,null,{"$f":"D1345*E1345","v":0}]
[null,"Si motion detector double technology infradred + microwave"]
[3,"F.V. Baze per montimin e detektoreve","cope",41,null,{"$f":"D1347*E1347","v":0}]
[null,"SI detector platforme"]
[4,"F.V. Modul IP per programimin dhe kontrrollin e centralit ne distance","cope",1,null,{"$f":"D1349*E1349","v":0}]
[null,"SI IP module for controle and programming in distance"]
[5,"F.V. Modul GSM per marrjen e thirrjeve ne rast alarmi ne telefon","cope",1,null,{"$f":"D1351*E1351","v":0}]
[null,"SI GSM module informing for alerts"]
[6,"F.V. Sirene e jashtme akustike-optike per lajmerim lokal ne rast alarmi","cope",1,null,{"$f":"D1353*E1353","v":0}]
[null,"SI Acustic-Optick Outdoor siren"]
[7,"F.V. Bateri 12V 2,4Ah per sirene e jashtme","cope",2,null,{"$f":"D1355*E1355","v":0}]
[null,"SI Batery 12V 2,4Ah for outdoor siren."]
[8,"F.V. Bateri 12V 7,2Ah per centralin e alarmit","cope",1,null,{"$f":"D1357*E1357","v":0}]
[null,"SI Batery 12V 7,2Ah for alarm central"]
[9,"F.V. Modul zgjerimi per lidhjen e 8 detektoreve si dhe 3 outpute","cope",5,null,{"$f":"D1359*E1359","v":0}]
[null,"SI  Module for 8 detector connection and 3 output"]
[10,"F.V. mbajtese per montimin e modulit te zgjerimit","cope",5,null,{"$f":"D1361*E1361","v":0}]
[null,"SI Suport for module instalation"]
[11,"F.V. Tastiere per programimin dhe armim disarmimin total ose parcial te sistemit","cope",1,null,{"$f":"D1363*E1363","v":0}]
[null,"SI Keyboard for  programming"]
[12,"F.V. Lexues per celsat proximity per armimin ose disarmimin parcial ose total te sistemit","cope",3,null,{"$f":"D1365*E1365","v":0}]
[null,"SI System data loger  proximity switch"]
[13,"F.V. Kit me 3 celsa per lexuesin proximity","cope",1,null,{"$f":"D1367*E1367","v":0}]
[null,"SI Proximity  3 kits for dataloger"]
[null,"shuma  7","leke",null,null,{"$f":"SUM(F1343:F1368)","v":0}]
[null,"Sum  "]
[]
[null,"8. Impianti I Tokezimit & Impianti Rrufeprites"]
[null,"8. Earthing Plant & Lightning Plant"]
[1,"F.V. Shtize rrufeprites h=1.5m","cope",14,null,{"$f":"D1374*E1374","v":0}]
[null,"SI Zn Spear"]
[2,"F.V. Percjelles hekuri i zinkuar D8mm ","ml",680,null,{"$f":"D1376*E1376","v":0}]
[null,"SI galvanised iron D8mm"]
[3,"F.V. Percjelles shirit hekuri i zinkuar 30x3.5 ","ml",450,null,{"$f":"D1378*E1378","v":0}]
[null,"SI galvanised iron 30x3.5"]
[4,"F.V. Tabele impiant tokezimi 250x150mm","cope",15,null,{"$f":"D1380*E1380","v":0}]
[null,"SI Earth connection caution sign 250x150 mm"]
[5,"F.V. Elektrode Tokezimi ZN L=1.5 m (50x50x5) e kompletuar me morsete ","cope",15,null,{"$f":"D1382*E1382","v":0}]
[null,"F.V. Grounding electrodes ZN L = 1.5 m (50x50x5) complete with clamps"]
[6,"F.V. Pusete plastike 20x20","cope",15,null,{"$f":"D1384*E1384","v":0}]
[null,"SI Plastic manhole 20x20"]
[7,"F.V. Morsete, shkeputes per matje tokezimi","cope",15,null,{"$f":"D1386*E1386","v":0}]
[null,"SI Clamp, disconnector for earthing measure"]
[8,"F.V. Morsete fiksimi universale ","cope",21,null,{"$f":"D1388*E1388","v":0}]
[null,"SI Universal fixing clamp"]
[9,"F.V. Suport plastik +kubik betoni per shufer Zn, cdo 1m","cope",310,null,{"$f":"D1390*E1390","v":0}]
[null,"SI Plastic support+ concrete cube for galvanized wire , each 1 m"]
[null,"shuma  8","leke",null,null,{"$f":"SUM(F1374:F1391)","v":0}]
[null,"Sum  "]
[]
[null,"9. Kuadrot Elektrik te Shperndarjes "]
[null,"9. Electrical Distribution Frames"]
[1,"Power Center ( Sipas skemes dhe konform normave dhe standarteve ne fuqi )","cope",1,null,{"$f":"D1397*E1397","v":0}]
[null,"Power Center  (According to the scheme and in accordance with the norms and standards in law )"]
[2,"Kuadri Elektrik (Kati -1) 1 ( Sipas skemes dhe konform normave dhe standarteve ne fuqi )","cope",1,null,{"$f":"D1399*E1399","v":0}]
[null,"SI  Electrical panel. -1 underground floor 1 ( ref. scheme of electrical project conform normatives )"]
[3,"Kuadri Elektrik (Kati 0) 1 ( Sipas skemes dhe konform normave dhe standarteve ne fuqi )","cope",1,null,{"$f":"D1401*E1401","v":0}]
[null,"SI  Electrical panel. Ground floor 1 ( ref. scheme of electrical project conform normatives )"]
[4,"Kuadri Elektrik (Kati 1) 1 ( Sipas skemes dhe konform normave dhe standarteve ne fuqi )","cope",1,null,{"$f":"D1403*E1403","v":0}]
[null,"SI  Electrical panel. First floor 1 ( ref. scheme of electrical project conform normatives )"]
[5,"Kuadri Elektrik (Kati 2) 1 ( Sipas skemes dhe konform normave dhe standarteve ne fuqi )","cope",1,null,{"$f":"D1405*E1405","v":0}]
[null,"SI  Electrical panel. Second floor 1 ( ref. scheme of electrical project conform normatives )"]
[6,"Kuadri Elektrik (Kati 3) 1 ( Sipas skemes dhe konform normave dhe standarteve ne fuqi )","cope",1,null,{"$f":"D1407*E1407","v":0}]
[null,"SI  Electrical panel. Third floor 1 ( ref. scheme of electrical project conform normatives )"]
[7,"Kuadri Elektrik (Kati -1) 2 ( Sipas skemes dhe konform normave dhe standarteve ne fuqi )","cope",1,null,{"$f":"D1409*E1409","v":0}]
[null,"SI  Electrical panel. -1 underground floor 2 ( ref. scheme of electrical project conform normatives )"]
[8,"Kuadri Elektrik (Kati 0) 2 ( Sipas skemes dhe konform normave dhe standarteve ne fuqi )","cope",1,null,{"$f":"D1411*E1411","v":0}]
[null,"SI  Electrical panel.Ground floor 2( ref. scheme of electrical project conform normatives )"]
[9,"Kuadri Elektrik Kopshti ( Sipas skemes dhe konform normave dhe standarteve ne fuqi )","cope",1,null,{"$f":"D1413*E1413","v":0}]
[null,"SI  Electrical panel. Kindergarten ( ref. scheme of electrical project conform normatives )"]
[10,"Kuadri Elektrik (Kati 1) 2 ( Sipas skemes dhe konform normave dhe standarteve ne fuqi )","cope",1,null,{"$f":"D1415*E1415","v":0}]
[null,"SI  Electrical panel. Second floor 2 (ref. scheme of electrical project conform normatives )"]
[11,"Kuadri Elektrik (Kati 2) 2 ( Sipas skemes dhe konform normave dhe standarteve ne fuqi )","cope",1,null,{"$f":"D1417*E1417","v":0}]
[null,"SI  Electrical panel. Second floor 2 ( ref. scheme of electrical project conform normatives )"]
[12,"Kuadri Elektrik (Kati 3) 2 ( Sipas skemes dhe konform normave dhe standarteve ne fuqi )","cope",1,null,{"$f":"D1419*E1419","v":0}]
[null,"SI  Electrical panel. Third floor 2 ( ref. scheme of electrical project conform normatives )"]
[13,"Kuadri Mekanikes Tarrace ( Sipas skemes dhe konform normave dhe standarteve ne fuqi )","cope",1,null,{"$f":"D1421*E1421","v":0}]
[null,"SI  Electrical panel. Terrace ( ref. scheme of electrical project conform normatives )"]
[null,"shuma  9","leke",null,null,{"$f":"SUM(F1396:F1421)","v":0}]
[null,"Sum  "]
[]
[null,"10. Kabina elektrike"]
[null,"10. Electric cabin"]
[1,"F.V. Cele Hyrje/Dalje te tipit IM","cope",2,null,{"$f":"D1428*E1428","v":0}]
[null,"F.V. Cele  Hyrje/ Exit key type IM"]
[2,"F.V. Cele Trafo  QM me tension 20kV, me mbrojtje me sigurese e kompletuar me bobine c'kycese","cope",1,null,{"$f":"D1430*E1430","v":0}]
[null,"F.V. Cele QM Transformer switch with voltage 20kV, with fuse protection complete with disconnect coil"]
[3,"F.V. Cele Matje 24kV/20kA","cope",1,null,{"$f":"D1432*E1432","v":0}]
[null,"F.V. Cele Matje 24kV / 20kA"]
[4,"F.V. Transformator i thate me rezine Sn=315kVA, 20/0.4kV, u=6%, Ddyn-11","cope",1,null,{"$f":"D1434*E1434","v":0}]
[null,"F.V. Dry resin transformer Sn = 315kVA, 20 / 0.4kV, u = 6%, Ddyn-11"]
[5,"F.V Kuader per komandimin e ventilatorit me dy shpejtesi","cope",1,null,{"$f":"D1436*E1436","v":0}]
[null,"F.V Frame for controlling the two-speed fan"]
[6,"F.V Ventilatorit me dy shpejtesi ","cope",1,null,{"$f":"D1438*E1438","v":0}]
[null,"F.V Two speed fan"]
[7,"F.V Termostat ambjenti 2 NO/NC ","cope",1,null,{"$f":"D1440*E1440","v":0}]
[null,"F.V Ambient thermostat 2 NO / NC"]
[8,"F.V.Elektrode e bakerzuar profil rrethor D16 h=1.5m +morsete ","cope",6,null,{"$f":"D1442*E1442","v":0}]
[null,"F.V. Copper electrode circular profile D16 h = 1.5m + clamps"]
[9,"F.V. Perrcjelles perimetral bakri i zhveshur 50mm2","cope",40,null,{"$f":"D1444*E1444","v":0}]
[null,"F.V. Bare copper perimeter conductor 50mm2"]
[10,"F.V. Rrjete metalike e zinguar 13500x5000mm me qeliza 150x150 Φ4mm","m2",25,null,{"$f":"D1446*E1446","v":0}]
[null,"F.V. Galvanized metal mesh 13500x5000mm with cells 150x150 Φ4mm"]
[11,"F.V. F.V. Rrjete metalike e zinkuar  per rrethimin e transformatoreve H2200mm","m2",10,null,{"$f":"D1448*E1448","v":0}]
[null,"F.V. F.V. Galvanized metal mesh for enclosing H2200mm transformers"]
[12,"F.V. Zbarre ekuipotenciale  bakri (kompletuar me izolator dhe vrima sipas nevojes)","cope",1,null,{"$f":"D1450*E1450","v":0}]
[null,"F.V. Equipotential copper busbars (complete with insulator and holes as needed)"]
[null,"shuma  10","leke",null,null,{"$f":"SUM(F1428:F1450)","v":0}]
[null,"Sum  "]
[null,"Shuma  C (1+2+3+4+5+6+7+8+9+10)","leke",null,null,{"$f":"F1189+F1226+F1263+F1288+F1305+F1338+F1369+F1392+F1423+F1452","v":0}]
[null,"Sum  C  (1+2+3+4+5+6+7+8+9)"]
[]
[null,"D . KARTELAT E SINJALIZIMIT"]
[null,"SIGNALING CARDS"]
[1,"FV Lidhja me motopompen (AL‐5121‐B) ","cope ",3,null,{"$f":"E1459*D1459","v":0}]
[null,"SI motopump connection (AL‐5121‐B) "]
[2,"F.V Hidrant Zjarri i (AL‐52121‐B)  ","cope ",17,null,{"$f":"E1461*D1461","v":0}]
[null,"SI fire hydrant  (AL‐52121‐B)  "]
[3,"FV Fikese zjarri me pluhur dhe CO2 (AL‐5203‐B) ","cope ",20,null,{"$f":"E1463*D1463","v":0}]
[null,"SI Fire extinguisher with powder and CO2 (AL ‐ 5203 ‐ B)"]
[4,"FV Buton sinjalizimi zjarri (AL‐5102‐B) ","cope ",12,null,{"$f":"E1465*D1465","v":0}]
[null,"SI fire signal button (AL‐5102‐B) "]
[5,"FV Drejtim dalje emergjence (AL‐5107‐B) ","cope ",64,null,{"$f":"E1467*D1467","v":0}]
[null,"SI emergency direction signage (AL‐5107‐B) "]
[6,"FV Zbritje, ngjitje, shkallesh (AL‐5103‐B) ","cope ",32,null,{"$f":"E1469*D1469","v":0}]
[null,"SI Descent, climbing, stairs (AL ‐ 5103 ‐ B)"]
[7,"FV Rrezik tensioni i larte ","cope ",1,null,{"$f":"E1471*D1471","v":0}]
[null,"SI High voltage danger"]
[8,"FV Ndalim i shuarjes me uje  ","cope ",1,null,{"$f":"E1473*D1473","v":0}]
[null,"SI Stop water extenguisher"]
[9,"F.V tabele e vogel me emertimin e dhomes/ klases","cope ",214,null,{"$f":"E1475*D1475","v":0}]
[null,"SI sign with the name of the rooms and classrooms"]
[10,"FV tabele me emertimin e objektit","cope ",1,null,{"$f":"E1477*D1477","v":0}]
[null,"SI sign with the name of the object"]
[null,"Shuma D",null,null,null,{"$f":"SUM(F1459:F1478)","v":0}]
["…"]
[null,"PERMBLEDHESE"]
[null,"PUNIME NDERTIMI","Leke",null,null,{"$f":"F612","v":0}]
[null,"CONSTRUCTION WORKS"]
[null,"INSTALIMET HIDROSANITARE DHE KLIMATIZIMI ","Leke",null,null,{"$f":"F1162","v":0}]
[null,"HYDRAULIC WORKS AND CLIMATE"]
[null,"INSTALIMET E NDRICIMIT dhe IT ","Leke",null,null,{"$f":"F1454","v":0}]
[null,"ELECTRICAL, LIGHTENING  AND I.T. WORKS"]
[null,"KARTELAT E SINJALIZIMIT","Leke",null,null,{"$f":"F1479","v":0}]
[null,"SIGNALING CARDS"]
[null,"Shuma     (A+B+C+D)","Leke",null,null,{"$f":"F1482+F1484+F1486+F1488","v":0}]
[null,"Sum (A+B+C+D)"]
[]
[null,"Fondi rezerve 5 % (1)","Leke",null,null,{"$f":"F1490*5%","v":0}]
[null,"Contigencies"]
[]
[null,"Shuma (1+2)","Leke",null,null,{"$f":"F1490+F1493","v":0}]
[null,"Sum"]
[]
[null,"TVSH ja  20 % (3)","Leke",null,null,{"$f":"F1496*20%","v":0}]
[null,"VAT"]
[]
[null,"SHUMA (I) (3+4)","Leke",null,null,{"$f":"F1496+F1499","v":0}]
[null,"SUM (I)"]
[]
[]
[{"$nulls":5}," "]
[]
[null," "]